Workbook

Sheet 1 день
A1: меню на 1 день | C1: ГРАММ НА 1 РЕБЕНКА | E1: КОЛ-ВО ДЕТЕЙ | G1: Сотрудники | H1: ИТОГО | I1: продукты к выдаче | J1: ед.изм | K1: ИТОГО на день (грамм) | L1: Выдано | M1: Перерасход (экономия)
I2: мясо (котлетное) | J2: кг | K2: =(H29+H42)/1000 -> 1.36 | M2: =L2-K2 -> -1.36 | N2: =B3 -> 00:00:00
A3: Дата | C3: ЯСЛИ | D3: САД | E3: ЯСЛИ | F3: САД | G3: 10 | H3: первое | I3: фарш готовый | J3: кг | K3: =(H30+H43)/1000 -> 1.36 | M3: =L3-K3 -> -1.36
E4: 10 | F4: 10 | H4: второе | I4: фарш куриный | J4: кг | M4: 0.00
A5: ЗАВТРАК | I5: птица | J5: кг | M5: 0.00
A6: каша дружба | I6: фарш минтая | J6: кг | K6: =H69/1000 -> 0.88 | M6: -0.88
A7: рис | C7: 10 | D7: 13.5 | E7: =C7*E4 -> 100 | F7: =D7*F4 -> 135 | H7: =E7+F7 -> 235 | I7: минтай | J7: кг | K7: =H68/1000 -> 1.20 | M7: -1.20
A8: пшено | C8: 7.5 | D8: 10 | E8: =C8*E4 -> 75 | F8: =D8*F4 -> 100 | H8: =E8+F8 -> 175 | I8: масло слив | J8: кг | K8: =(H13+H21+H74+H77+H84)/1000 -> 0.33 | M8: -0.33
A9: молоко | C9: 75 | D9: 90 | E9: =C9*E4 -> 750 | F9: =D9*F4 -> 900 | H9: 1650 | I9: масло раст | J9: л | K9: =(H38+H49+H56+H73)/1000 -> 0.18 | M9: -0.18
A10: вода | C10: 48 | D10: 68 | E10: =C10*E4 -> 480 | F10: =D10*F4 -> 680 | H10: 1160 | I10: молоко | J10: л | K10: =(H9+H17+H75+H83+H76)/1000 -> 4.25 | M10: -4.25
A11: Сахар | C11: 2 | D11: 2.5 | E11: =C11*E4 -> 20 | F11: =D11*F4 -> 25 | H11: 45 | I11: молоко сгущ | J11: л | M11: 0.00
A12: соль | C12: 0.4 | D12: 0.5 | E12: =C12*E4 -> 4 | F12: =D12*F4 -> 5 | H12: 9 | I12: кефир | J12: шт. | K12: =H66/450 -> 8 | M12: -7.56
A13: масло сливочное | C13: 3 | D13: 5 | E13: =C13*E4 -> 30 | F13: =D13*F4 -> 50 | H13: 80 | I13: ряженка | J13: шт. | M13: 0.00
A14: кофейный напиток | I14: катык | J14: шт. | M14: 0.00
A15: кофе | C15: 2.5 | D15: 2.5 | E15: =C15*E4 -> 25 | F15: =D15*F4 -> 25 | H15: =E15+F15 -> 50 | I15: напиток ацидофильный | J15: шт. | M15: 0.00
A16: сахар | C16: 6 | D16: 6 | E16: =C16*E4 -> 60 | F16: =D16*F4 -> 60 | H16: =E16+F16 -> 120 | I16: сметана | J16: л | M16: 0.00
A17: молоко | C17: 90 | D17: 90 | E17: =C17*E4 -> 900 | F17: =D17*F4 -> 900 | H17: =E17+F17 -> 1800 | I17: творог | J17: шт. | M17: 0.00
A18: вода | C18: 108 | D18: 108 | E18: =C18*E4 -> 1080 | F18: =D18*F4 -> 1080 | H18: =E18+F18 -> 2160 | I18: сыр | J18: кг | M18: 0.00
A19: бутерброд с маслом | I19: яйцо | J19: шт | K19: =(H32+H72)/48 -> 3 | M19: -3
A20: батон нарезной | C20: 25 | D20: 30 | E20: =C20*E4 -> 250 | F20: =D20*F4 -> 300 | H20: =E20+F20 -> 550 | I20: мука пшен | J20: кг | K20: =(H55+H78)/1000 -> 0.05 | M20: -0.05
A21: масло сливочное | C21: 5 | D21: 5 | E21: =C21*E4 -> 50 | F21: =D21*F4 -> 50 | H21: =E21+F21 -> 100 | I21: гречка | J21: кг | M21: 0.00
A22: 2-ОЙ ЗАВТРАК | I22: манка | J22: кг | M22: 0.00
A23: Сок | C23: 200 | D23: 180 | E23: =C23*E4 -> 2000 | F23: =D23*F4 -> 1800 | H23: =E23+F23 -> 3800 | I23: рис | J23: кг | K23: =H7/1000 -> 0.24
A24: ОБЕД | I24: пшено | J24: кг | K24: =H8/1000 -> 0.18 | M24: -0.18
A25: Салат из моркови припущенной с яблоками | B25: морковь | C25: 40.88 | D25: 61.31 | E25: =C25*E4 -> 408.8 | F25: =D25*F4 -> 613.1 | H25: =E25+F25 -> 1021.9 | I25: геркулес | J25: кг | M25: 0.00
B26: яблоки | C26: 11.4 | D26: 17.1 | E26: =C26*E4 -> 114 | F26: =D26*F4 -> 171 | H26: =E26+F26 -> 285 | I26: вермишель | J26: кг | K26: =H35/1000 -> 0.22 | M26: -0.22
B27: сахар | C27: 0.4 | D27: 0.6 | E27: =C27*E4 -> 4 | F27: =D27*F4 -> 6 | H27: =E27+F27 -> 10 | I27: кукурузная крупа | J27: кг | M27: 0.00
A28: Суп картофельный с вермишелью, с мясными фрикадельками | I28: сахар песок | J28: кг | K28: =(H11+H16+H27+H67+H62+H80+H87+H57)/1000 -> 0.47 | M28: -0.47
A29: фрикадельки | B29: говядина (котлетное мясо) | C29: 11.97 | D29: 17.85 | E29: =C29*E4 -> 119.7 | F29: =D29*F4 -> 178.5 | G29: =D29*G3 -> 178.5 | H29: =E29+F29+G29 -> 476.7 | I29: макароны | J29: кг | M29: 0.00
B30: фарш говяжий | C30: 11.97 | D30: 17.85 | E30: =C30*E4 -> 119.7 | F30: =D30*F4 -> 178.5 | G30: =D30*G3 -> 178.5 | H30: =E30+F30+G30 -> 476.7 | I30: печенье | J30: кг | M30: 0.00
B31: лук | C31: 1.19 | D31: 1.79 | E31: =C31*E4 -> 11.9 | F31: =D31*F4 -> 17.9 | G31: =D31*G3 -> 17.9 | H31: =E31+F31+G31 -> 47.7 | I31: вафли | J31: кг | K31: =H65/1000 -> 0.40 | M31: -0.400
B32: яйцо | C32: 0.96 | D32: 1.44 | E32: =C32*E4 -> 9.6 | F32: =D32*F4 -> 14.4 | G32: =D32*G3 -> 14.4 | H32: =E32+F32+G32 -> 38.4 | I32: какао | J32: кг | M32: 0.00
B33: соль | C33: 0.1 | D33: 0.15 | E33: =C33*E4 -> 1 | F33: =D33*F4 -> 1.5 | G33: =D33*G3 -> 1.5 | H33: 4 | I33: кофе | J33: кг | K33: =H15/1000 -> 0.050 | M33: -0.050
A34: суп | B34: картофель | C34: 59.9 | D34: 80 | E34: =C34*E4 -> 599 | F34: =D34*F4 -> 800 | G34: =D34*G3 -> 800 | H34: 2199 | I34: заварка | J34: кг | K34: =H86/1000 -> 0.009 | M34: -0.009
B35: вермишель | C35: 6 | D35: 8 | E35: =C35*E4 -> 60 | F35: =D35*F4 -> 80 | G35: =D35*G3 -> 80 | H35: =E35+F35+G35 -> 220 | I35: дрожжи | J35: кг | M35: 0.000
B36: морковь | C36: 7.5 | D36: 10 | E36: =C36*E4 -> 75 | F36: =D36*F4 -> 100 | G36: =D36*G3 -> 100 | H36: 275 | I36: сок | J36: л | K36: =F23/1000 -> 1.80 | M36: -1.80
B37: лук | C37: 7.2 | D37: 9.6 | E37: =C37*E4 -> 72 | F37: =D37*F4 -> 96 | G37: =D37*G3 -> 96 | H37: 264 | I37: соль | J37: кг | K37: =(H12+H33+H39+H48+H58+H70+H81+H85)/1000 -> 0.07 | M37: -0.07
B38: масло раст. | C38: 1.5 | D38: 2 | E38: =C38*E4 -> 15 | F38: =D38*F4 -> 20 | G38: =D38*G3 -> 20 | H38: 55 | I38: картофель | J38: кг | K38: =(H34+H82)/1000 -> 5.16
B39: соль | C39: 0.5 | D39: 0.7 | E39: =C39*E4 -> 5 | F39: =D39*F4 -> 7 | G39: =D39*G3 -> 7 | H39: 19 | I39: томат паста | J39: л | K39: =H54/1000 -> 0.06 | M39: =L39-K39 -> -0.06
B40: вода | C40: 105 | D40: 140 | E40: =C40*E4 -> 1050 | F40: =D40*F4 -> 1400 | G40: =D40*G3 -> 1400 | H40: 3850 | I40: сол.огурцы | J40: л | M40: 0.00
A41: Котлеты рубленые из говядины | I41: зеленый горошек | J41: кг | M41: 0.00
A42: говядина (котлетное мясо) | C42: 36.57 | D42: 51.45 | E42: =C42*E4 -> 365.7 | F42: =D42*F4 -> 514.5 | H42: =E42+F42+G42 -> 880.2 | I42: капуста | J42: кг | K42: =H51/1000 -> 3.58 | M42: -3.58
A43: фарш готовый | C43: 36.57 | D43: 51.45 | E43: =C43*E4 -> 365.7 | F43: =D43*F4 -> 514.5 | H43: 880.2 | I43: лук | J43: кг | K43: =(H31+H37+H44+H52)/1000 -> 0.68 | M43: -0.68
A44: лук | C44: 10.4 | D44: 14.64 | E44: =C44*E4 -> 104 | F44: =D44*F4 -> 146.4 | H44: 250.4 | I44: морковь | J44: кг | K44: =(H25+H36+H53)/1000 -> 1.36 | M44: -1.36
A45: хлеб пшеничный | C45: 8.13 | D45: 11 | E45: =C45*E4 -> 81.3 | F45: =D45*F4 -> 110 | H45: 191.3 | I45: свекла | J45: кг | M45: 0.00
A46: вода | C46: 5.2 | D46: 14.7 | E46: =C46*E4 -> 52 | F46: =D46*F4 -> 147 | H46: 199 | I46: фрукты | J46: кг | M46: 0.00
A47: сухари панировочные | C47: 2.8 | D47: 4 | E47: =C47*E4 -> 28 | F47: =D47*F4 -> 40 | H47: 68 | I47: яблоки | J47: кг | K47: =H26/1000 -> 0.29 | M47: -0.29
A48: соль | C48: 0.4 | D48: 0.7 | E48: =C48*E4 -> 4 | F48: =D48*F4 -> 7 | H48: 11 | I48: лимон | J48: кг | M48: 0.00
A49: масло раст. | C49: 0.6 | D49: 1 | E49: =C49*E4 -> 6 | F49: =D49*F4 -> 10 | H49: 16 | I49: повидло | J49: л | M49: 0.00
A50: Капуста тушеная
A51: капуста свежая | C51: 172 | D51: 186.3 | E51: =C51*E4 -> 1720 | F51: =D51*F4 -> 1863 | H51: 3583 | I51: сухофрукты | J51: кг | K51: =H60/1000 -> 0.28 | M51: -0.28
A52: лук | C52: 5.76 | D52: 6.19 | E52: =C52*E4 -> 57.6 | F52: =D52*F4 -> 61.9 | H52: 119.5 | I52: изюм | J52: кг | M52: 0.00
A53: морковь | C53: 3 | D53: 3.25 | E53: =C53*E4 -> 30 | F53: =D53*F4 -> 32.5 | H53: 62.5 | I53: сухари панировочные | J53: кг | K53: =H47/1000 -> 0.07 | M53: -0.07
A54: томатная паста | C54: 2.88 | D54: 3.12 | E54: =C54*E4 -> 28.8 | F54: =D54*F4 -> 31.2 | H54: =E54+F54 -> 60 | I54: батон нарезной | J54: кг | K54: =H20/1000 -> 0.55 | M54: -0.55
A55: мука пшеничная | C55: 1.44 | D55: 1.56 | E55: =C55*E4 -> 14.4 | F55: =D55*F4 -> 15.6 | H55: =E55+F55 -> 30 | I55: хлеб пшеничный | J55: кг | K55: =(H45+H89+H71)/1000 -> 0.9 | M55: -0.89
A56: масло растительное | C56: 4.2 | D56: 4.55 | E56: =C56*E4 -> 42 | F56: =D56*F4 -> 45.5 | H56: =E56+F56 -> 87.5 | I56: хлеб ржаной | J56: кг | K56: =H63/1000 -> 1.3 | M56: -1.25
A57: сахар | C57: 0.9 | D57: 1 | E57: =C57*E4 -> 9 | F57: =D57*F4 -> 10 | H57: =E57+F57 -> 19 | I57: кукуруза консервир. | J57: кг | M57: 0.00
A58: соль | C58: 0.45 | D58: 0.5 | E58: =C58*E4 -> 4.5 | F58: =D58*F4 -> 5 | H58: 9.5 | I58: сок 0,200 | J58: шт | K58: =E23/200 -> 10 | M58: -10.00
A59: Компот из сухофруктов | I59: огурцы св | J59: кг | M59: 0
A60: сухофрукты | C60: 12.75 | D60: 15.3 | E60: =C60*E4 -> 127.5 | F60: =D60*F4 -> 153 | H60: =E60+F60 -> 280.5 | I60: икра кабачковая | J60: кг | M60: 0.00
A61: вода | C61: 152 | D61: 183 | E61: =C61*E4 -> 1520 | F61: =D61*F4 -> 1830 | H61: =E61+F61 -> 3350 | I61: курага | J61: кг
A62: сахар | C62: 5 | D62: 6 | E62: =C62*E4 -> 50 | F62: =D62*F4 -> 60 | H62: =E62+F62 -> 110 | I62: лапша | J62: кг
A63: хлеб ржаной | C63: 35 | D63: 45 | E63: =C63*E4 -> 350 | F63: =D63*F4 -> 450 | G63: =(G3+G4)*D63 -> 450 | H63: =E63+F63+G63 -> 1250 | I63: капуста цветная | J63: кг
A64: УПЛОТНЕННЫЙ ПОЛДНИК
A65: вафли | C65: 20 | D65: 20 | E65: =C65*E4 -> 200 | F65: =D65*F4 -> 200 | H65: =E65+F65 -> 400
A66: кефир с сахаром | B66: кефир | C66: 155 | D66: 185 | E66: =C66*E4 -> 1550 | F66: =D66*F4 -> 1850 | H66: =E66+F66 -> 3400
B67: сахар | C67: 2 | D67: 3 | E67: =C67*E4 -> 20 | F67: =D67*F4 -> 30 | H67: =E67+F67 -> 50
A68: пудинг рыбный | B68: рыба (минтай) | C68: 51.54 | D68: 68.34 | E68: =C68*E4 -> 515.4 | F68: =D68*F4 -> 683.4 | H68: =E68+F68 -> 1198.8
B69: фарш минтая | C69: 37.9 | D69: 50.25 | E69: =C69*E4 -> 379 | F69: =D69*F4 -> 502.5 | H69: =E69+F69 -> 881.5
B70: соль | C70: 0.3 | D70: 0.4 | E70: =C70*E4 -> 3 | F70: =D70*F4 -> 4 | H70: 7
B71: хлеб пшеничный | C71: 6.2 | D71: 8.25 | E71: =C71*E4 -> 62 | F71: =D71*F4 -> 82.5 | H71: 144.5
B72: яйцо | C72: 4.8 | D72: 6.3 | E72: =C72*E4 -> 48 | F72: =D72*F4 -> 63 | H72: 111
B73: масло раст. | C73: 0.8 | D73: 1 | E73: =C73*E4 -> 8 | F73: =D73*F4 -> 10 | H73: 18
B74: масло сливочное | C74: 1.7 | D74: 2.25 | E74: =C74*E4 -> 17 | F74: =D74*F4 -> 22.5 | H74: 39.5
B75: молоко | C75: 9 | D75: 12 | E75: =C75*E4 -> 90 | F75: =D75*F4 -> 120 | H75: 210
A76: соус молочный | B76: молоко | C76: 7.5 | D76: 10 | E76: =C76*E4 -> 75 | F76: =D76*F4 -> 100 | H76: 175
B77: масло сливочное | C77: 0.8 | D77: 1.1 | E77: =C77*E4 -> 8 | F77: =D77*F4 -> 11 | H77: 19
B78: мука | C78: 0.8 | D78: 1.1 | E78: =C78*E4 -> 8 | F78: =D78*F4 -> 11 | H78: 19
B79: вода | C79: 7.5 | D79: 10 | E79: =C79*E4 -> 75 | F79: =D79*F4 -> 100 | H79: 175
B80: сахар | C80: 0.15 | D80: 0.2 | E80: =C80*E4 -> 1.5 | F80: =D80*F4 -> 2 | H80: 3.5
B81: соль | C81: 0.09 | D81: 0.13 | E81: =C81*E4 -> 0.9 | F81: =D81*F4 -> 1.3 | H81: 2.2
A82: пюре картофельное | B82: картофель | C82: 136.8 | D82: 159.6 | E82: =C82*E4 -> 1368 | F82: =D82*F4 -> 1596 | H82: 2964
B83: молоко | C83: 18.96 | D83: 22.12 | E83: =C83*E4 -> 189.6 | F83: =D83*F4 -> 221.2 | H83: 410.8
B84: масло сливочное | C84: 4.2 | D84: 5 | E84: =C84*E4 -> 42 | F84: =D84*F4 -> 50 | H84: 92
B85: соль | C85: 0.45 | D85: 0.52 | E85: =C85*E4 -> 4.5 | F85: =D85*F4 -> 5.2 | H85: 9.7
A86: чай с сахаром | B86: чай весовой | C86: 0.4 | D86: 0.45 | E86: =C86*E4 -> 4 | F86: =D86*F4 -> 4.5 | H86: =E86+F86 -> 8.5
B87: сахар | C87: 5 | D87: 6 | E87: =C87*E4 -> 50 | F87: =D87*F4 -> 60 | H87: 110
B88: вода | C88: 150 | D88: 180 | E88: =C88*E4 -> 1500 | F88: =D88*F4 -> 1800 | H88: 3300
A89: хлеб пшеничный | C89: 25 | D89: 30 | E89: =C89*E4 -> 250 | F89: =D89*F4 -> 300 | H89: 550

Sheet 2 день
A1: меню на 2 день | C1: ГРАММ НА 1 РЕБЕНКА | E1: КОЛ-ВО ДЕТЕЙ | G1: Сотрудники | H1: ИТОГО | I1: продукты к выдаче | J1: ед.изм | K1: ИТОГО на день (грамм) | L1: Выдано | M1: Перерасход (экономия)
I2: фарш готовый | J2: кг | M2: =L2-K2 -> 0.00 | N2: =B4 -> 00:00:00
C3: ЯСЛИ | D3: САД | E3: ЯСЛИ | F3: САД | G3: 10 | H3: первое | I3: птица | J3: кг | K3: =H42/1000 -> 1.03 | M3: -1.03
A4: Дата | E4: 10 | F4: 10 | H4: второе | I4: фарш куриный | J4: кг | K4: =H43/1000 -> 0.68 | M4: -0.68
A5: ЗАВТРАК | I5: минтай | J5: кг | M5: 0.00
A6: каша полбяная молочная с маслом | I6: масло слив | J6: кг | K6: =(H12+H21+H49+H57+H66+H72)/1000 -> 0.49 | M6: -0.49
A7: полба | C7: 18 | D7: 22.5 | E7: =C7*E4 -> 180 | F7: =D7*F4 -> 225 | H7: =E7+F7 -> 405 | I7: масло раст | J7: л | K7: =(H29+H37+H47+H68)/1000 -> 0.19 | M7: -0.19
A8: молоко | C8: 70 | D8: 90 | E8: =C8*E4 -> 700 | F8: =D8*F4 -> 900 | H8: 1600 | I8: молоко | J8: л | K8: =(H8+H16+H48)/1000 -> 4.03 | M8: -4.03
A9: вода | C9: 53 | D9: 68 | E9: =C9*E4 -> 530 | F9: =D9*F4 -> 680 | H9: 1210 | I9: молоко сгущ | J9: л | M9: 0.00
A10: Сахар | C10: 2 | D10: 2.5 | E10: =C10*E4 -> 20 | F10: =D10*F4 -> 25 | H10: 45 | I10: кефир | J10: шт. | M10: 0.00
A11: соль | C11: 0.4 | D11: 0.5 | E11: =C11*E4 -> 4 | F11: =D11*F4 -> 5 | H11: 9 | I11: ряженка | J11: шт. | K11: =H63/450 -> 8 | M11: -7.56
A12: масло сл. | C12: 3 | D12: 3 | E12: =C12*E4 -> 30 | F12: =D12*F4 -> 30 | H12: 60 | I12: катык | J12: шт. | M12: 0.00
A13: какао с молоком | I13: напиток ацидофильный | J13: шт. | M13: 0.00
A14: какао | C14: 2 | D14: 2 | E14: =C14*E4 -> 20 | F14: =D14*F4 -> 20 | H14: =E14+F14 -> 40 | I14: сметана | J14: л | K14: =(H38+H76)/1000 -> 0.31 | M14: -0.31
A15: сахар | C15: 6 | D15: 6 | E15: =C15*E4 -> 60 | F15: =D15*F4 -> 60 | H15: =E15+F15 -> 120 | I15: творог | J15: шт. | K15: =H70/250 -> 9 | M15: -8.99
A16: молоко | C16: 110 | D16: 110 | E16: =C16*E4 -> 1100 | F16: =D16*F4 -> 1100 | H16: =E16+F16 -> 2200 | I16: сыр | J16: кг | K16: =H20/1000 -> 0.20 | M16: -0.20
A17: вода | C17: 80 | D17: 80 | E17: =C17*E4 -> 800 | F17: =D17*F4 -> 800 | H17: =E17+F17 -> 1600 | I17: яйцо | J17: шт | K17: =H73/48 -> 2 | M17: -2
A18: бутерброд с сыром и маслом | I18: мука пшен | J18: кг | K18: =(H50+H64)/1000 -> 0.68 | M18: -0.68
A19: батон нарезной | C19: 25 | D19: 30 | E19: =C19*E4 -> 250 | F19: =D19*F4 -> 300 | H19: =E19+F19 -> 550 | I19: гречка | J19: кг | M19: 0.00
A20: сыр | C20: 10.2 | D20: 10.2 | E20: =C20*E4 -> 102 | F20: =D20*F4 -> 102 | H20: =E20+F20 -> 204 | I20: манка | J20: кг | K20: =H75/1000 -> 0.14 | M20: -0.14
A21: масло сливочное | C21: 5 | D21: 5 | E21: =C21*E4 -> 50 | F21: =D21*F4 -> 50 | H21: =E21+F21 -> 100 | I21: рис | J21: кг | M21: 0.00
A22: 2-ОЙ ЗАВТРАК | I22: пшено | J22: кг | M22: 0.00
A23: Фрукты свежие | C23: 100 | D23: 100 | E23: =C23*E4 -> 1000 | F23: =D23*F4 -> 1000 | H23: =E23+F23 -> 2000 | I23: перловка | J23: кг | M23: 0.00
A24: ОБЕД | I24: геркулес | J24: кг | M24: 0.00
A25: Салат из картофеля с солеными огурцами | B25: огурцы соленые | C25: 21.84 | D25: 32.76 | E25: =C25*E4 -> 218.4 | F25: =D25*F4 -> 327.6 | H25: =E25+F25 -> 546 | I25: горох | J25: кг | M25: 0.00
B26: морковь | C26: 10.24 | D26: 15.36 | E26: =C26*E4 -> 102.4 | F26: =D26*F4 -> 153.6 | H26: =E26+F26 -> 256 | I26: пшеничная | J26: кг | M26: 0.00
B27: лук | C27: 2.4 | D27: 3.6 | E27: =C27*E4 -> 24 | F27: =D27*F4 -> 36 | H27: =E27+F27 -> 60 | I27: полба | J27: кг | K27: =H7/1000 -> 0.41 | M27: -0.41
B28: картофель | C28: 21.92 | D28: 32.9 | E28: =C28*E4 -> 219.2 | F28: =D28*F4 -> 329 | H28: =E28+F28 -> 548.2 | I28: кукурузная крупа | J28: кг | M28: 0.00
B29: масло раст. | C29: 2 | D29: 3 | E29: =C29*E4 -> 20 | F29: =D29*F4 -> 30 | H29: =E29+F29 -> 50 | I29: сахар песок | J29: кг | K29: =(H10+H15+H52+H59+H71+H79+H36+H65+H82)/1000 -> 0.77 | M29: -0.77
A30: Борщ со свежей капустой, картофелем на курином бульоне, со сметаной | I30: вермишель (звездочка) | J30: кг | M30: 0.00
A31: капуста св. | C31: 15.6 | D31: 18.75 | E31: =C31*E4 -> 156 | F31: =D31*F4 -> 187.5 | G31: =D31*G3 -> 187.5 | H31: =E31+F31+G31 -> 531 | I31: макароны | J31: кг | K31: =H55/1000 -> 0.84 | M31: -0.84
A32: картофель | C32: 16.63 | D32: 19.95 | E32: =C32*E4 -> 166.3 | F32: =D32*F4 -> 199.5 | G32: =D32*G3 -> 199.5 | H32: =E32+F32+G32 -> 565.3 | I32: печенье | J32: кг | M32: 0.00
A33: морковь | C33: 11.25 | D33: 12.5 | E33: =C33*E4 -> 112.5 | F33: =D33*F4 -> 125 | G33: =D33*G3 -> 125 | H33: 362.5 | I33: вафли | J33: кг | M33: 0.00
A34: лук | C34: 7.8 | D34: 9.6 | E34: =C34*E4 -> 78 | F34: =D34*F4 -> 96 | G34: =D34*G3 -> 96 | H34: 270 | I34: какао | J34: кг | K34: =H14/1000 -> 0.040 | M34: -0.040
A35: свекла | C35: 32 | D35: 38.4 | E35: =C35*E4 -> 320 | F35: =D35*F4 -> 384 | G35: =D35*G3 -> 384 | H35: 1088 | I35: кофе | J35: кг | M35: 0.000
A36: сахар | C36: 1.5 | D36: 1.8 | E36: =C36*E4 -> 15 | F36: =D36*F4 -> 18 | G36: =D36*G3 -> 18 | H36: 51 | I36: заварка | J36: кг | K36: =H81/1000 -> 0.009 | M36: -0.009
A37: масло раст. | C37: 3 | D37: 3.6 | E37: =C37*E4 -> 30 | F37: =D37*F4 -> 36 | G37: =D37*G3 -> 36 | H37: 102 | I37: дрожжи | J37: кг | K37: =H69/1000 -> 0.004 | M37: -0.004
A38: сметана | C38: 7 | D38: 7 | E38: =C38*E4 -> 70 | F38: =D38*F4 -> 70 | G38: =D38*G3 -> 70 | H38: 210 | I38: шиповник | J38: кг | M38: 0.00
A39: соль | C39: 0.65 | D39: 0.8 | E39: =C39*E4 -> 6.5 | F39: =D39*F4 -> 8 | G39: =D39*G3 -> 8 | H39: 22.5 | I39: сок | J39: л | M39: 0.00
A40: бульон | C40: 120 | D40: 144 | E40: =C40*E4 -> 1200 | F40: =D40*F4 -> 1440 | G40: =D40*G3 -> 1440 | H40: 4080 | I40: соль | J40: кг | K40: =(H11+H39+H46+H53+H56+H67+H74)/1000 -> 0.07 | M40: -0.07
A41: Фрикадельки куриные в молочном соусе | I41: картофель | J41: кг | K41: =(H28+H32)/1000 -> 1.11 | M41: -1.11
A42: цыплята-бройлер с/м | C42: 45.6 | D42: 57 | E42: =C42*E4 -> 456 | F42: =D42*F4 -> 570 | H42: =E42+F42+G42 -> 1026 | I42: томат паста | J42: л | M42: 0.00
A43: фарш куриный | C43: 30.77 | D43: 37 | E43: =C43*E4 -> 307.7 | F43: =D43*F4 -> 370 | H43: =E43+F43 -> 677.7 | I43: сол.огурцы | J43: л | K43: =H25/1000 -> 0.55 | M43: -0.55
A44: хлеб пшеничный | C44: 7.3 | D44: 9 | E44: =C44*E4 -> 73 | F44: =D44*F4 -> 90 | H44: =E44+F44 -> 163 | I44: зеленый горошек | J44: кг | M44: 0.00
A45: вода | C45: 9 | D45: 12 | E45: =C45*E4 -> 90 | F45: =D45*F4 -> 120 | H45: 210 | I45: капуста | J45: кг | K45: =H31/1000 -> 0.53 | M45: -0.53
A46: соль | C46: 0.3 | D46: 0.35 | E46: =C46*E4 -> 3 | F46: =D46*F4 -> 3.5 | H46: 6.5 | I46: лук | J46: кг | K46: =(H27+H34)/1000 -> 0.33 | M46: -0.33
A47: масло растительное | C47: 0.6 | D47: 0.7 | E47: =C47*E4 -> 6 | F47: =D47*F4 -> 7 | H47: 13 | I47: морковь | J47: кг | K47: =(H26+H33)/1000 -> 0.62 | M47: -0.62
A48: соус молочный | B48: молоко | C48: 10 | D48: 12.5 | E48: =C48*E4 -> 100 | F48: =D48*F4 -> 125 | H48: =E48+F48 -> 225 | I48: свекла | J48: кг | K48: =H35/1000 -> 1.09 | M48: -1.09
B49: масло сливочное | C49: 1.04 | D49: 1.3 | E49: =C49*E4 -> 10.4 | F49: =D49*F4 -> 13 | H49: =E49+F49 -> 23.4 | I49: фрукты | J49: кг | K49: =H23/1000 -> 2.00 | M49: -2.00
B50: мука | C50: 1.04 | D50: 1.3 | E50: =C50*E4 -> 10.4 | F50: =D50*F4 -> 13 | H50: 23.4 | I50: яблоки | J50: кг | M50: 0.00
B51: вода | C51: 10 | D51: 12.5 | E51: =C51*E4 -> 100 | F51: =D51*F4 -> 125 | H51: =F51 -> 125 | I51: лимон | J51: кг | K51: =H83/1000 -> 0.14 | M51: -0.14
B52: сахар | C52: 0.2 | D52: 0.3 | E52: =C52*E4 -> 2 | F52: =D52*F4 -> 3 | H52: 5 | I52: повидло | J52: л | M52: 0.00
B53: соль | C53: 0.2 | D53: 0.3 | E53: =C53*E4 -> 2 | F53: =D53*F4 -> 3 | H53: 5 | I53: кисель | J53: кг | K53: =(H78+H58)/1000 -> 0.49 | M53: -0.49
A54: Макароны отварные с маслом сливочным | I54: изюм | J54: кг | M54: =L54-K54 -> 0.00
A55: макаронные изделия | C55: 38.5 | D55: 45.5 | E55: =C55*E4 -> 385 | F55: =D55*F4 -> 455 | H55: =E55+F55 -> 840 | I55: крахмал | J55: кг | K55: =H80/1000 -> 0.02 | M55: -0.02
A56: соль | C56: 0.45 | D56: 0.5 | E56: =C56*E4 -> 4.5 | F56: =D56*F4 -> 5 | H56: 9.5 | I56: сухари панировочные | J56: кг | K56: =H77/1000 -> 0.10 | M56: -0.10
A57: масло сливочное | C57: 3 | D57: 3 | E57: =C57*E4 -> 30 | F57: =D57*F4 -> 30 | H57: 60 | I57: батон нарезной | J57: кг | K57: =H19/1000 -> 0.55 | M57: -0.55
A58: Кисель | B58: кисель | C58: 17.5 | D58: 21 | E58: =C58*E4 -> 175 | F58: =D58*F4 -> 210 | H58: 385 | I58: хлеб пшеничный | J58: кг | K58: =(H44+H60)/1000 -> 0.41 | M58: -0.41
B59: сахар | C59: 5 | D59: 6 | E59: =C59*E4 -> 50 | F59: =D59*F4 -> 60 | H59: 110 | I59: хлеб ржаной | J59: кг | K59: =H61/1000 -> 1.25 | M59: -1.25
A60: хлеб пшеничный | C60: 0 | D60: 25 | E60: =C60*E4 -> 0 | F60: =D60*F4 -> 250 | H60: 250 | I60: кукуруза конс. | J60: кг | M60: 0.00
A61: хлеб ржаной | C61: 35 | D61: 45 | E61: =C61*E4 -> 350 | F61: =D61*F4 -> 450 | G61: =(G3+G4)*D61 -> 450 | H61: =E61+F61+G61 -> 1250 | I61: сок 0,200 | J61: шт | M61: 0
A62: УПЛОТНЕННЫЙ ПОЛДНИК
A63: Ряженка | C63: 155 | D63: 185 | E63: =C63*E4 -> 1550 | F63: =D63*F4 -> 1850 | H63: =E63+F63 -> 3400
A64: Булочка дорожная | B64: мука | C64: 32.7 | D64: 32.7 | E64: =C64*E4 -> 327 | F64: =D64*F4 -> 327 | H64: =E64+F64 -> 654
B65: сахар | C65: 6 | D65: 6 | E65: =C65*E4 -> 60 | F65: =D65*F4 -> 60 | H65: 120
B66: масло слив. | C66: 7.5 | D66: 7.5 | E66: =C66*E4 -> 75 | F66: =D66*F4 -> 75 | H66: 150
B67: соль | C67: 0.3 | D67: 0.3 | E67: =C67*E4 -> 3 | F67: =D67*F4 -> 3 | H67: 6
B68: масло растит. | C68: 1 | D68: 1 | E68: =C68*E4 -> 10 | F68: =D68*F4 -> 10 | H68: 20
B69: дрожжи | C69: 0.2 | D69: 0.2 | E69: =C69*E4 -> 2 | F69: =D69*F4 -> 2 | H69: 4
A70: Запеканка творожная с ягодным соусом | B70: творог | C70: 103.2 | D70: 121.55 | E70: =C70*E4 -> 1032 | F70: =D70*F4 -> 1215.5 | H70: =E70+F70 -> 2247.5
B71: сахар | C71: 8.8 | D71: 10.4 | E71: =C71*E4 -> 88 | F71: =D71*F4 -> 104 | H71: 192
B72: масло слив | C72: 4.4 | D72: 5.2 | E72: =C72*E4 -> 44 | F72: =D72*F4 -> 52 | H72: 96
B73: яйцо | C73: 5.28 | D73: 6.5 | E73: =C73*E4 -> 52.8 | F73: =D73*F4 -> 65 | H73: 117.8
B74: соль | C74: 0.55 | D74: 0.65 | E74: =C74*E4 -> 5.5 | F74: =D74*F4 -> 6.5 | H74: 12
B75: крупа манная | C75: 6.6 | D75: 7.8 | E75: =C75*E4 -> 66 | F75: =D75*F4 -> 78 | H75: 144
B76: сметана | C76: 4.4 | D76: 5.2 | E76: =C76*E4 -> 44 | F76: =D76*F4 -> 52 | H76: 96
B77: сухари панировочные | C77: 4.4 | D77: 5.2 | E77: =C77*E4 -> 44 | F77: =D77*F4 -> 52 | H77: 96
A78: соус ягодный | B78: кисель | C78: 5 | D78: 5 | E78: =C78*E4 -> 50 | F78: =D78*F4 -> 50 | H78: =E78+F78 -> 100
B79: сахар | C79: 1 | D79: 1 | E79: =C79*E4 -> 10 | F79: =D79*F4 -> 10 | H79: =E79+F79 -> 20
B80: крахмал | C80: 1 | D80: 1 | E80: =C80*E4 -> 10 | F80: =D80*F4 -> 10 | H80: 20
A81: Чай с сахаром и лимоном | B81: чай весовой | C81: 0.4 | D81: 0.45 | E81: =C81*E4 -> 4 | F81: =D81*F4 -> 4.5 | H81: =E81+F81 -> 8.5
B82: сахар | C82: 5 | D82: 6 | E82: =C82*E4 -> 50 | F82: =D82*F4 -> 60 | H82: 110
B83: лимон | C83: 5.55 | D83: 8 | E83: =C83*E4 -> 55.5 | F83: =D83*F4 -> 80 | H83: 135.5
B84: вода | C84: 150 | D84: 180 | E84: =C84*E4 -> 1500 | F84: =D84*F4 -> 1800 | H84: =E84+F84 -> 3300

Sheet 3 день
A1: меню на 3 день | C1: ГРАММ НА 1 РЕБЕНКА | E1: КОЛ-ВО ДЕТЕЙ | G1: Сотрудники | H1: ИТОГО | I1: продукты к выдаче | J1: ед.изм | K1: ИТОГО на день | L1: Выдано | M1: Перерасход (экономия)
I2: фарш куриный | J2: кг | M2: =L2-K2 -> 0.00 | N2: =B3 -> 00:00:00
A3: Дата | C3: ЯСЛИ | D3: САД | E3: ЯСЛИ | F3: САД | G3: 10 | H3: первое | I3: говядина (лопатка) | J3: кг | K3: =H37/1000 -> 0.90 | M3: -0.90
E4: 10 | F4: 10 | H4: второе | I4: фарш минтая | J4: кг | K4: =H46/1000 -> 1.10 | M4: -1.10
A5: ЗАВТРАК | I5: минтай | J5: кг | K5: =H47/1000 -> 1.43 | M5: -1.43
A6: Каша кукурузная молочная с маслом слив. | I6: масло слив | J6: кг | K6: =(H12+H20+H36+H51)/1000 -> 0.37 | M6: -0.37
A7: кукурузная крупа | C7: 18 | D7: 22.5 | E7: =C7*E4 -> 180 | F7: =D7*F4 -> 225 | H7: =E7+F7 -> 405 | I7: масло раст | J7: л | K7: =(H31+H55)/1000 -> 0.15 | M7: -0.15
A8: молоко | C8: 70 | D8: 90 | E8: =C8*E4 -> 700 | F8: =D8*F4 -> 900 | H8: 1600 | I8: молоко | J8: л | K8: =(H8+H16+H45)/1000 -> 6.81 | M8: -6.81
A9: вода | C9: 53 | D9: 68 | E9: =C9*E4 -> 530 | F9: =D9*F4 -> 680 | H9: 1210 | I9: молоко сгущ | J9: л | M9: 0.00
A10: Сахар | C10: 2 | D10: 2.5 | E10: =C10*E4 -> 20 | F10: =D10*F4 -> 25 | H10: 45 | I10: кефир | J10: шт. | M10: 0.00
A11: соль | C11: 0.4 | D11: 0.5 | E11: =C11*E4 -> 4 | F11: =D11*F4 -> 5 | H11: 9 | I11: ряженка | J11: шт. | M11: 0.00
A12: масло сливочное | C12: 4 | D12: 5 | E12: =C12*E4 -> 40 | F12: =D12*F4 -> 50 | H12: 90 | I12: катык | J12: шт. | M12: 0.00
A13: чай с молоком, сахаром | I13: напиток ацидофильный | J13: шт. | M13: 0.00
A14: заварка | C14: 0.45 | D14: 0.45 | E14: =C14*E4 -> 4.5 | F14: =D14*F4 -> 4.5 | H14: =E14+F14 -> 9 | I14: сметана | J14: л | K14: =H57/1000 -> 0.11 | M14: -0.11
A15: сахар | C15: 6 | D15: 6 | E15: =C15*E4 -> 60 | F15: =D15*F4 -> 60 | H15: =E15+F15 -> 120 | I15: творог | J15: шт. | M15: 0.00
A16: молоко | C16: 82 | D16: 92 | E16: =C16*E4 -> 820 | F16: =D16*F4 -> 920 | H16: =E16+F16 -> 1740 | I16: сыр | J16: кг | M16: 0.00
A17: вода | C17: 90 | D17: 90 | E17: =C17*E4 -> 900 | F17: =D17*F4 -> 900 | H17: =E17+F17 -> 1800 | I17: яйцо | J17: шт. | K17: =H49/48 -> 4 | M17: -4
A18: бутерброд с маслом | I18: мука пшен | J18: кг | K18: =H58/1000 -> 0.03 | M18: -0.03
A19: батон нарезной | C19: 25 | D19: 30 | E19: =C19*E4 -> 250 | F19: =D19*F4 -> 300 | H19: =E19+F19 -> 550 | I19: гречка | J19: кг | M19: 0.00
A20: масло сливочное | C20: 5 | D20: 5 | E20: =C20*E4 -> 50 | F20: =D20*F4 -> 50 | H20: =E20+F20 -> 100 | I20: манка | J20: кг | M20: 0.00
A21: 2-ОЙ ЗАВТРАК | I21: пшено | J21: кг | K21: =H27/1000 -> 0.33 | M21: -0.33
A22: Сок в ассортименте | C22: 200 | D22: 180 | E22: =C22*E4 -> 2000 | F22: =D22*F4 -> 1800 | H22: =E22+F22 -> 3800 | I22: рис | K22: =H39/1000 -> 0.87
A23: ОБЕД | I23: геркулес | J23: кг | M23: 0.00
A24: Фрукты свежие | C24: 100 | D24: 100 | E24: =C24*E4 -> 1000 | F24: =D24*F4 -> 1000 | H24: =E24+F24 -> 2000 | I24: пшеничная | J24: кг | M24: 0.00
A25: Суп картофельный с пшенной крупой на мясном бульоне | I25: полба | J25: кг | M25: 0.00
A26: картофель | C26: 60 | D26: 80 | E26: =C26*E4 -> 600 | F26: =D26*F4 -> 800 | G26: =D26*G3 -> 800 | H26: =E26+F26+G26 -> 2200 | I26: кукурузная крупа | J26: кг | K26: =H7/1000 -> 0.41 | M26: =L26-K26 -> -0.41
A27: пшено | C27: 9 | D27: 12 | E27: =C27*E4 -> 90 | F27: =D27*F4 -> 120 | G27: =D27*G3 -> 120 | H27: =E27+F27+G27 -> 330 | I27: сахар песок | J27: кг | K27: =(H10+H15+H42)/1000 -> 0.31 | M27: -0.31
A28: лук | C28: 7.14 | D28: 9.52 | E28: =C28*E4 -> 71.4 | F28: =D28*F4 -> 95.2 | G28: =D28*G3 -> 95.2 | H28: 261.8 | I28: вермишель (звездочка) | J28: кг | M28: 0.00
A29: морковь | C29: 7.5 | D29: 10 | E29: =C29*E4 -> 75 | F29: =D29*F4 -> 100 | G29: =D29*G3 -> 100 | H29: 275 | I29: макароны | J29: кг | M29: 0.00
A30: соль | C30: 0.5 | D30: 0.7 | E30: =C30*E4 -> 5 | F30: =D30*F4 -> 7 | G30: =D30*G3 -> 7 | H30: 19 | I30: печенье | J30: кг | M30: 0.00
A31: масло раст. | C31: 1.5 | D31: 2 | E31: =C31*E4 -> 15 | F31: =D31*F4 -> 20 | G31: =D31*G3 -> 20 | H31: 55 | I31: вафли | J31: кг | M31: 0.00
A32: вода | C32: 105 | D32: 120 | E32: =C32*E4 -> 1050 | F32: =D32*F4 -> 1200 | G32: =D32*G3 -> 1200 | H32: 3450 | I32: какао | J32: кг | M32: 0.00
A33: Плов из отварной говядины | B33: лук | C33: 8.9 | D33: 11.9 | E33: =C33*E4 -> 89 | F33: =D33*F4 -> 119 | H33: 208 | I33: кофе | J33: кг | M33: 0.00
B34: вода | C34: 65 | D34: 86 | E34: =C34*E4 -> 650 | F34: =D34*F4 -> 860 | H34: 1510 | I34: заварка | J34: кг | K34: =(H14+H61)/1000 -> 0.018 | M34: -0.02
B35: соль | C35: 0.5 | D35: 0.8 | E35: =C35*E4 -> 5 | F35: =D35*F4 -> 8 | H35: 13 | I35: лимонная кислота | J35: кг | M35: 0.000
B36: масло сливочное | C36: 5 | D36: 8 | E36: =C36*E4 -> 50 | F36: =D36*F4 -> 80 | H36: 130 | I36: дрожжи | J36: кг | M36: 0.000
B37: говядина (лопатка) | C37: 38.4 | D37: 51.2 | E37: =C37*E4 -> 384 | F37: =D37*F4 -> 512 | H37: 896 | I37: шиповник | J37: кг | M37: 0.000
B38: морковь | C38: 12.5 | D38: 16.3 | E38: =C38*E4 -> 125 | F38: =D38*F4 -> 163 | H38: 288 | I38: сок | J38: л | K38: =F22/1000 -> 1.8 | M38: -1.800
B39: крупа рисовая | C39: 32 | D39: 55 | E39: =C39*E4 -> 320 | F39: =D39*F4 -> 550 | H39: 870 | I39: соль | J39: кг | K39: =(H11+H30+H35+H50+H56+H60)/1000 -> 0.05 | M39: -0.054
A40: Напиток из вишни | B40: вода | C40: 152 | D40: 183 | E40: =C40*E4 -> 1520 | F40: =D40*F4 -> 1830 | H40: =E40+F40 -> 3350 | I40: картофель | J40: кг | K40: =(H26+H52)/1000 -> 5.39 | M40: -5.39
B41: вишня с/м | C41: 15 | D41: 18 | E41: =C41*E4 -> 150 | F41: =D41*F4 -> 180 | H41: =E41+F41 -> 330 | I41: томат паста | J41: л | M41: 0.00
B42: сахар | C42: 6.5 | D42: 8 | E42: =C42*E4 -> 65 | F42: =D42*F4 -> 80 | H42: =E42+F42 -> 145 | I42: огурцы свежие | J42: л | M42: 0.00
A43: хлеб ржаной | C43: 35 | D43: 45 | E43: =C43*E4 -> 350 | F43: =D43*F4 -> 450 | G43: =(G3+G4)*D43 -> 450 | H43: =E43+F43+G43 -> 1250 | I43: капуста | J43: кг | M43: 0.00
A44: УПЛОТНЕННЫЙ ПОЛДНИК | I44: лук | J44: кг | K44: =(H28+H33+H53)/1000 -> 0.63 | M44: -0.63
A45: Молоко кипяченое | C45: 158 | D45: 189 | E45: =C45*E4 -> 1580 | F45: =D45*F4 -> 1890 | H45: =E45+F45 -> 3470 | I45: морковь | J45: кг | K45: =(H29+H38+H54)/1000 -> 0.79 | M45: -0.79
A46: Фрикадельки рыбные отварные | B46: фарш (минтай) | C46: 47.25 | D46: 63 | E46: =C46*E4 -> 472.5 | F46: =D46*F4 -> 630 | H46: =E46+F46 -> 1102.5 | I46: свекла | J46: кг | M46: 0.00
B47: рыба (минтай) | C47: 61.2 | D47: 81.6 | E47: =C47*E4 -> 612 | F47: =D47*F4 -> 816 | H47: =E47+F47 -> 1428 | I47: апельсины | J47: кг | K47: =H40/1000 -> 3.35 | M47: -3.35
B48: хлеб пшеничный | C48: 9 | D48: 12 | E48: =C48*E4 -> 90 | F48: =D48*F4 -> 120 | H48: 210 | I48: яблоки | J48: кг | K48: =H24/1000 -> 2.00 | M48: -2.00
B49: яйцо | C49: 7.2 | D49: 9.6 | E49: =C49*E4 -> 72 | F49: =D49*F4 -> 96 | H49: 168 | I49: вишня с/м | J49: кг | K49: =H41/1000 -> 0.33 | M49: -0.33
B50: соль | C50: 0.1 | D50: 0.12 | E50: =C50*E4 -> 1 | F50: =D50*F4 -> 1.2 | H50: 2.2 | I50: мармелад | J50: л | M50: 0.00
B51: масло сливочное | C51: 2 | D51: 3 | E51: =C51*E4 -> 20 | F51: =D51*F4 -> 30 | H51: 50 | I51: кисель | J51: кг | M51: 0.00
A52: картофель тушеный | B52: картофель | C52: 146.3 | D52: 173 | E52: =C52*E4 -> 1463 | F52: =D52*F4 -> 1730 | H52: 3193 | I52: сухофрукты | J52: кг | M52: 0.00
B53: лук | C53: 7.2 | D53: 8.4 | E53: =C53*E4 -> 72 | F53: =D53*F4 -> 84 | H53: 156 | I53: изюм | J53: кг | M53: 0.00
B54: морковь | C54: 10.63 | D54: 12.5 | E54: =C54*E4 -> 106.3 | F54: =D54*F4 -> 125 | H54: 231.3 | I54: урюк | J54: кг | M54: 0.00
B55: масло раст. | C55: 4.5 | D55: 5 | E55: =C55*E4 -> 45 | F55: =D55*F4 -> 50 | H55: 95 | I55: сухари панировочные | J55: кг | M55: 0.00
B56: соль | C56: 0.34 | D56: 0.4 | E56: =C56*E4 -> 3.4 | F56: =D56*F4 -> 4 | H56: =E56+F56 -> 7.4 | I56: батон нарезной | J56: кг | K56: =H19/1000 -> 0.55 | M56: -0.55
A57: соус | B57: сметана | C57: 5 | D57: 6.25 | E57: =C57*E4 -> 50 | F57: =D57*F4 -> 62.5 | H57: =E57+F57 -> 112.5 | I57: хлеб пшеничный | J57: кг | K57: =(H48+H64)/1000 -> 0.76 | M57: -0.76
B58: мука | C58: 1.5 | D58: 1.88 | E58: =C58*E4 -> 15 | F58: =D58*F4 -> 18.8 | H58: =E58+F58 -> 33.8 | I58: хлеб ржаной | J58: кг | K58: =H43/1000 -> 1.25 | M58: -1.25
B59: вода | C59: 15 | D59: 18.75 | E59: =C59*E4 -> 150 | F59: =D59*F4 -> 187.5 | H59: =E59+F59 -> 337.5 | I59: кукуруза консерв. | J59: кг | M59: 0.00
B60: соль | C60: 0.16 | D60: 0.2 | E60: =C60*E4 -> 1.6 | F60: =D60*F4 -> 2 | H60: 3.6 | I60: сок 0,200 | J60: шт | K60: =E22/200 -> 10 | M60: -10.00
A61: Чай с мармеладом | B61: чай | C61: 0.45 | D61: 0.45 | E61: =C61*E4 -> 4.5 | F61: =D61*F4 -> 4.5 | H61: =E61+F61 -> 9 | I61: икра кабачковая | J61: кг | M61: 0.00
B62: вода | C62: 160 | D62: 160 | E62: =C62*E4 -> 1600 | F62: =D62*F4 -> 1600 | H62: =E62+F62 -> 3200 | I62: мармелад | J62: кг | K62: =H63/1000 -> 0.27 | M62: =L62-K62 -> -0.27
B63: мармелад | C63: 13.5 | D63: 13.5 | E63: =C63*E4 -> 135 | F63: =D63*F4 -> 135 | H63: =E63+F63 -> 270 | I63: капуста цветная | J63: кг | M63: =L63-K63 -> 0.00
A64: хлеб пшеничный | C64: 25 | D64: 30 | E64: =C64*E4 -> 250 | F64: =D64*F4 -> 300 | H64: =E64+F64 -> 550

Sheet 4 день
A1: меню на 4 день | C1: ГРАММ НА 1 РЕБЕНКА | E1: КОЛ-ВО ДЕТЕЙ | G1: Сотрудники | H1: ИТОГО | I1: продукты к выдаче | J1: ед.изм | K1: ИТОГО на день | L1: Выдано | M1: Перерасход (экономия)
I2: мясо (котлетное) | J2: кг | M2: =L2-K2 -> 0.00 | N2: =B3 -> 00:00:00
A3: Дата | C3: ЯСЛИ | D3: САД | E3: ЯСЛИ | F3: САД | G3: 10 | H3: первое | I3: фарш готовый | J3: кг | M3: =L3-K3 -> 0.00
E4: 10 | F4: 10 | H4: второе | I4: мясо (говядина) | J4: кг | M4: 0.00
A5: ЗАВТРАК | I5: птица | J5: кг | K5: =H38/1000 -> 1.71 | M5: -1.71
A6: Каша ячневая молочная с маслом сливочным | I6: минтай | J6: кг | M6: 0.00
A7: крупа ячневая | C7: 17.5 | D7: 22.5 | E7: =C7*E4 -> 175 | F7: =D7*F4 -> 225 | H7: =E7+F7 -> 400 | I7: масло слив | J7: кг | K7: =(H12+H21+H61+H68)/1000 -> 0.24 | M7: -0.24
A8: молоко | C8: 70 | D8: 90 | E8: =C8*E4 -> 700 | F8: =D8*F4 -> 900 | H8: 1600 | I8: масло раст | J8: л | K8: =(H28+H34+H47+H65)/1000 -> 0.21 | M8: -0.21
A9: вода | C9: 53 | D9: 68 | E9: =C9*E4 -> 530 | F9: =D9*F4 -> 680 | H9: =E9+F9 -> 1210 | I9: молоко | J9: л | K9: =(H8+H16+H59+H70)/1000 -> 4.74 | M9: -4.74
A10: сахар | C10: 2 | D10: 2.5 | E10: =C10*E4 -> 20 | F10: =D10*F4 -> 25 | H10: =E10+F10 -> 45 | I10: молоко сгущ | J10: л | M10: 0.00
A11: соль | C11: 0.4 | D11: 0.5 | E11: =C11*E4 -> 4 | F11: =D11*F4 -> 5 | H11: 9 | I11: кефир | J11: шт. | K11: =H54/450 -> 8 | M11: -7.56
A12: масло сл. | C12: 3 | D12: 3 | E12: =C12*E4 -> 30 | F12: =D12*F4 -> 30 | H12: 60 | I12: ряженка | J12: шт. | M12: 0.00
A13: кофейный напиток | I13: катык | J13: шт. | M13: 0.00
A14: кофейный напиток | C14: 2.5 | D14: 2.5 | E14: =C14*E4 -> 25 | F14: =D14*F4 -> 25 | H14: =E14+F14 -> 50 | I14: напиток ацидофильный | J14: шт. | M14: 0.00
A15: сахар | C15: 6 | D15: 6 | E15: =C15*E4 -> 60 | F15: =D15*F4 -> 60 | H15: =E15+F15 -> 120 | I15: сметана | J15: л | K15: =H40/1000 -> 0.10 | M15: -0.10
A16: молоко | C16: 90 | D16: 90 | E16: =C16*E4 -> 900 | F16: =D16*F4 -> 900 | H16: =E16+F16 -> 1800 | I16: творог | J16: шт. | M16: 0.00
A17: вода | C17: 108 | D17: 108 | E17: =C17*E4 -> 1080 | F17: =D17*F4 -> 1080 | H17: =E17+F17 -> 2160 | I17: сыр | J17: кг | K17: =H71/1000 -> 0.29 | M17: -0.29
A18: бутерброд с маслом слив, с повидлом | I18: яйцо | J18: шт | K18: =(H62+H64+H67)/48 -> 48 | M18: -48
A19: батон нарезной | C19: 25 | D19: 30 | E19: =C19*E4 -> 250 | F19: =D19*F4 -> 300 | H19: =E19+F19 -> 550 | I19: мука пшен | J19: кг | K19: =(H41+H57)/1000 -> 0.65 | M19: -0.65
A20: повидло | C20: 10 | D20: 10 | E20: =C20*E4 -> 100 | F20: =D20*F4 -> 100 | H20: =E20+F20 -> 200 | I20: гречка | J20: кг | M20: 0.00
A21: масло сливочное | C21: 5 | D21: 5 | E21: =C21*E4 -> 50 | F21: =D21*F4 -> 50 | H21: =E21+F21 -> 100 | I21: манка | J21: кг | M21: 0.00
A22: 2-ОЙ ЗАВТРАК | I22: пшено | J22: кг | M22: 0.00
A23: Фрукты свежие | C23: 150 | D23: 150 | E23: =C23*E4 -> 1500 | F23: =D23*F4 -> 1500 | H23: =E23+F23 -> 3000 | I23: ячневая | J23: кг | K23: =H7/1000 -> 0.40 | M23: -0.40
A24: ОБЕД | I24: горох | J24: кг | K24: =H30/1000 -> 0.45 | M24: -0.45
A25: Салат из свеклы отварной с яблоками | I25: кукурузная крупа | J25: кг | M25: =L25-K25 -> 0.00
A26: свекла | C26: 42.24 | D26: 64 | E26: =C26*E4 -> 422.4 | F26: =D26*F4 -> 640 | H26: =E26+F26 -> 1062.4 | I26: сахар песок | J26: кг | K26: =(H10+H15+H50+H55+H63+H73)/1000 -> 0.51 | M26: -0.51
A27: яблоки | C27: 7.98 | D27: 11.4 | E27: =C27*E4 -> 79.8 | F27: =D27*F4 -> 114 | H27: =E27+F27 -> 193.8 | I27: макароны | J27: кг | M27: 0.00
A28: масло раст. | C28: 2 | D28: 3 | E28: =C28*E4 -> 20 | F28: =D28*F4 -> 30 | H28: =E28+F28 -> 50 | I28: печенье | J28: кг | M28: 0.00
A29: Суп картофельный с горохом на курином бульоне | I29: вафли | J29: кг | M29: 0.00
A30: горох | C30: 12.15 | D30: 16.2 | E30: =C30*E4 -> 121.5 | F30: =D30*F4 -> 162 | G30: =D30*G3 -> 162 | H30: =E30+F30+G30 -> 445.5 | I30: какао | J30: кг | M30: 0.000
A31: картофель | C31: 40.05 | D31: 53.2 | E31: =C31*E4 -> 400.5 | F31: =D31*F4 -> 532 | G31: =D31*G3 -> 532 | H31: =E31+F31+G31 -> 1464.5 | I31: кофе | J31: кг | K31: =H14/1000 -> 0.050 | M31: -0.050
A32: морковь | C32: 9.6 | D32: 12.8 | E32: =C32*E4 -> 96 | F32: =D32*F4 -> 128 | G32: =D32*G3 -> 128 | H32: 352 | I32: заварка | J32: кг | K32: =H72/1000 -> 0.009 | M32: -0.009
A33: лук | C33: 7.2 | D33: 9.6 | E33: =C33*E4 -> 72 | F33: =D33*F4 -> 96 | G33: =D33*G3 -> 96 | H33: 264 | I33: лимонная кислота | J33: кг | M33: 0.000
A34: масло раст. | C34: 3 | D34: 4 | E34: =C34*E4 -> 30 | F34: =D34*F4 -> 40 | G34: =D34*G3 -> 40 | H34: 110 | I34: дрожжи | J34: кг | K34: =H58/1000 -> 0.005 | M34: -0.005
A35: соль | C35: 0.15 | D35: 0.2 | E35: =C35*E4 -> 1.5 | F35: =D35*F4 -> 2 | G35: =D35*G3 -> 2 | H35: 5.5 | I35: шиповник | J35: кг | M35: 0.00
A36: бульон | C36: 105 | D36: 140 | E36: =C36*E4 -> 1050 | F36: =D36*F4 -> 1400 | G36: =D36*G3 -> 1400 | H36: 3850 | I36: сок | J36: л | M36: 0.00
A37: Птица, тушеная в соусе с овощами | I37: соль | J37: кг | K37: =(H11+H35+H42+H46+H60+H69)/1000 -> 0.05 | M37: -0.05
A38: курица | C38: 73 | D38: 97.5 | E38: =C38*E4 -> 730 | F38: =D38*F4 -> 975 | H38: =E38+F38+G38 -> 1705 | I38: картофель | J38: кг | K38: =(H31+H43)/1000 -> 3.71 | M38: -3.71
A39: соус | B39: вода | C39: 15 | D39: 15 | E39: =C39*E4 -> 150 | F39: =D39*F4 -> 150 | H39: 300 | I39: томат паста | J39: л | M39: 0.00
B40: сметана | C40: 5 | D40: 5 | E40: =C40*E4 -> 50 | F40: =D40*F4 -> 50 | H40: 100 | I40: огурцы свежие | J40: л | M40: 0.00
B41: мука | C41: 1.5 | D41: 1.5 | E41: =C41*E4 -> 15 | F41: =D41*F4 -> 15 | H41: 30 | I41: зеленый горошек | J41: кг | M41: 0.00
B42: соль | C42: 0.16 | D42: 0.16 | E42: =C42*E4 -> 1.6 | F42: =D42*F4 -> 1.6 | H42: 3.2 | I42: капуста | J42: кг | M42: 0.00
A43: овощи | B43: картофель | C43: 87.2 | D43: 137 | E43: =C43*E4 -> 872 | F43: =D43*F4 -> 1370 | H43: 2242 | I43: лук | J43: кг | K43: =(H33+H45)/1000 -> 0.72 | M43: -0.72
B44: морковь | C44: 32 | D44: 37.5 | E44: =C44*E4 -> 320 | F44: =D44*F4 -> 375 | H44: 695 | I44: морковь | J44: кг | K44: =(H32+H44)/1000 -> 1.05 | M44: -1.05
B45: лук | C45: 17.6 | D45: 28 | E45: =C45*E4 -> 176 | F45: =D45*F4 -> 280 | H45: 456 | I45: свекла | J45: кг | K45: =H26/1000 -> 1.06 | M45: -1.06
B46: соль | C46: 0.6 | D46: 0.8 | E46: =C46*E4 -> 6 | F46: =D46*F4 -> 8 | H46: 14 | I46: фрукты | J46: кг | K46: =H23/1000 -> 3.00 | M46: -3.00
B47: масло раст. | C47: 1.2 | D47: 1.5 | E47: =C47*E4 -> 12 | F47: =D47*F4 -> 15 | H47: 27 | I47: яблоки | J47: кг | K47: =H27/1000 -> 0.19 | M47: -0.19
A48: Напиток из сухофруктов | B48: сухофрукты | C48: 12.75 | D48: 15.3 | E48: =C48*E4 -> 127.5 | F48: =D48*F4 -> 153 | H48: =E48+F48 -> 280.5 | I48: лимон | J48: кг | M48: 0.00
B49: вода | C49: 152 | D49: 183 | E49: =C49*E4 -> 1520 | F49: =D49*F4 -> 1830 | H49: =E49+F49 -> 3350 | I49: повидло | J49: л | K49: =H20/1000 -> 0.20 | M49: -0.20
B50: сахар | C50: 5 | D50: 6 | E50: =C50*E4 -> 50 | F50: =D50*F4 -> 60 | H50: =E50+F50 -> 110 | I50: кисель | J50: кг | M50: 0.00
A51: хлеб пшеничный | C51: 0 | D51: 25 | E51: =C51*E4 -> 0 | F51: =D51*F4 -> 250 | H51: =E51+F51 -> 250 | I51: сухофрукты | J51: кг | K51: =H48/1000 -> 0.28 | M51: -0.28
A52: хлеб ржаной | C52: 35 | D52: 45 | E52: =C52*E4 -> 350 | F52: =D52*F4 -> 450 | G52: =(G3+G4)*D52 -> 450 | H52: =E52+F52+G52 -> 1250 | I52: сухари панировочные | J52: кг | M52: =L52-K52 -> 0.00
A53: УПЛОТНЕННЫЙ ПОЛДНИК | I53: батон нарезной | J53: кг | K53: =H19/1000 -> 0.55 | M53: -0.55
A54: Кефир | C54: 155 | D54: 185 | E54: =C54*E4 -> 1550 | F54: =D54*F4 -> 1850 | H54: =E54+F54 -> 3400 | I54: хлеб пшеничный | J54: кг | K54: =(H51+H75)/1000 -> 0.80 | M54: -0.80
A55: сахар | C55: 2 | D55: 3 | E55: =C55*E4 -> 20 | F55: =D55*F4 -> 30 | H55: =E55+F55 -> 50 | I55: хлеб ржаной | J55: кг | K55: =H52/1000 -> 1.25 | M55: -1.25
A56: Булочка с сахаром | I56: капуста морская | J56: кг | M56: 0.00
A57: тесто | B57: мука | C57: 31 | D57: 31 | E57: =C57*E4 -> 310 | F57: =D57*F4 -> 310 | H57: =E57+F57 -> 620 | I57: сок 0,125 | J57: шт | M57: 0.00
B58: дрожжи | C58: 0.25 | D58: 0.25 | E58: =C58*E4 -> 2.5 | F58: =D58*F4 -> 2.5 | H58: 5 | I58: курага | J58: кг | M58: 0
B59: молоко | C59: 13 | D59: 13 | E59: =C59*E4 -> 130 | F59: =D59*F4 -> 130 | H59: 260 | I59: лапша | J59: кг | M59: 0.00
B60: соль | C60: 0.35 | D60: 0.35 | E60: =C60*E4 -> 3.5 | F60: =D60*F4 -> 3.5 | H60: 7
B61: масло сливочное | C61: 1.4 | D61: 1.4 | E61: =C61*E4 -> 14 | F61: =D61*F4 -> 14 | H61: 28
B62: яйцо | C62: 2.88 | D62: 2.88 | E62: =C62*E4 -> 28.8 | F62: =D62*F4 -> 28.8 | H62: =E62+F62 -> 57.6
B63: сахар | C63: 3.9 | D63: 3.9 | E63: =C63*E4 -> 39 | F63: =D63*F4 -> 39 | H63: 78
B64: яйцо (на смазку изделия) | C64: 1.44 | D64: 1.44 | E64: =C64*E4 -> 14.4 | F64: =D64*F4 -> 14.4 | H64: =E64+F64 -> 28.8
B65: масло раст. для смазки | C65: 1 | D65: 1 | E65: =C65*E4 -> 10 | F65: =D65*F4 -> 10 | H65: 20
A66: Омлет с сыром
A67: яйцо | C67: 102 | D67: 120 | E67: =C67*E4 -> 1020 | F67: =D67*F4 -> 1200 | H67: 2220
A68: масло сливочное | C68: 2.6 | D68: 3 | E68: =C68*E4 -> 26 | F68: =D68*F4 -> 30 | H68: 56
A69: соль | C69: 0.3 | D69: 0.4 | E69: =C69*E4 -> 3 | F69: =D69*F4 -> 4 | H69: 7
A70: молоко | C70: 51 | D70: 57 | E70: =C70*E4 -> 510 | F70: =D70*F4 -> 570 | H70: 1080
A71: сыр | C71: 13.26 | D71: 15.3 | E71: =C71*E4 -> 132.6 | F71: =D71*F4 -> 153 | H71: =E71+F71 -> 285.6
A72: Чай с сахаром | B72: чай весовой | C72: 0.4 | D72: 0.45 | E72: =C72*E4 -> 4 | F72: =D72*F4 -> 4.5 | H72: =E72+F72 -> 8.5
B73: сахар | C73: 5 | D73: 6 | E73: =C73*E4 -> 50 | F73: =D73*F4 -> 60 | H73: 110
B74: вода | C74: 150 | D74: 180 | E74: =C74*E4 -> 1500 | F74: =D74*F4 -> 1800 | H74: =E74+F74 -> 3300
A75: хлеб пшеничный | C75: 25 | D75: 30 | E75: =C75*E4 -> 250 | F75: =D75*F4 -> 300 | H75: 550

Sheet 5 день
A1: меню на 5 день | C1: ГРАММ НА 1 РЕБЕНКА | E1: КОЛ-ВО ДЕТЕЙ | G1: Сотрудники | H1: ИТОГО | I1: продукты к выдаче | J1: ед.изм | K1: ИТОГО на день | L1: Выдано | M1: Перерасход (экономия)
I2: говядина (лопатка) | J2: кг | K2: =H35/1000 -> 1.12 | M2: =L2-K2 -> -1.12 | N2: =B3 -> 00:00:00
A3: Дата | C3: ЯСЛИ | D3: САД | E3: ЯСЛИ | F3: САД | G3: 10 | H3: первое | I3: фарш готовый | J3: кг | M3: =L3-K3 -> 0.00
E4: 10 | F4: 10 | H4: второе | I4: фарш куриный | J4: кг | K4: =H54/1000 -> 0.75 | M4: =L4-K4 -> -0.75
A5: ЗАВТРАК | I5: птица | J5: кг | K5: =H53/1000 -> 1.10 | M5: =L5-K5 -> -1.10
A6: Суп молочный с вермишелью | I6: фарш минтая | J6: кг | M6: =L6-K6 -> 0.00
A7: вермишель | C7: 14.4 | D7: 16 | E7: =C7*E4 -> 144 | F7: =D7*F4 -> 160 | H7: =E7+F7 -> 304 | I7: минтай | J7: кг | M7: 0.00
A8: молоко | C8: 126 | D8: 140 | E8: =C8*E4 -> 1260 | F8: =D8*F4 -> 1400 | H8: 2660 | I8: масло слив | J8: кг | K8: =(H12+H21+H46+H56++H75)/1000 -> 0.26 | M8: -0.26
A9: вода | C9: 54 | D9: 60 | E9: =C9*E4 -> 540 | F9: =D9*F4 -> 600 | H9: 1140 | I9: масло раст | J9: л | K9: =(H30+H39+H60+H74)/1000 -> 0.19 | M9: -0.19
A10: Сахар | C10: 1 | D10: 1.1 | E10: =C10*E4 -> 10 | F10: =D10*F4 -> 11 | H10: 21 | I10: молоко | J10: л | K10: =(H8+H16+H52)/1000 -> 8.13 | M10: -8.13
A11: соль | C11: 0.7 | D11: 0.8 | E11: =C11*E4 -> 7 | F11: =D11*F4 -> 8 | H11: 15 | I11: молоко сгущ | J11: л | M11: 0.00
A12: масло сливочное | C12: 1.8 | D12: 2 | E12: =C12*E4 -> 18 | F12: =D12*F4 -> 20 | H12: 38 | I12: кефир | J12: шт. | M12: 0
A13: какао с молоком | I13: ряженка | J13: шт. | M13: 0.00
A14: какао | C14: 1.7 | D14: 2 | E14: =C14*E4 -> 17 | F14: =D14*F4 -> 20 | H14: =E14+F14 -> 37 | I14: катык | J14: шт. | M14: 0.00
A15: сахар | C15: 5 | D15: 6 | E15: =C15*E4 -> 50 | F15: =D15*F4 -> 60 | H15: =E15+F15 -> 110 | I15: напиток ацидофильный | J15: шт. | M15: 0.00
A16: молоко | C16: 90 | D16: 110 | E16: =C16*E4 -> 900 | F16: =D16*F4 -> 1100 | H16: =E16+F16 -> 2000 | I16: сметана | J16: л | K16: =(H33+H61)/1000 -> 0.32 | M16: -0.32
A17: вода | C17: 67 | D17: 80 | E17: =C17*E4 -> 670 | F17: =D17*F4 -> 800 | H17: =E17+F17 -> 1470 | I17: сыр | J17: кг | K17: =H20/1000 -> 0.20 | M17: -0.20
A18: бутерброд с сыром, маслом слив. | I18: яйцо | J18: шт. | K18: =H70/48 -> 0 | M18: 0
A19: батон нарезной | C19: 25 | D19: 30 | E19: =C19*E4 -> 250 | F19: =D19*F4 -> 300 | H19: =E19+F19 -> 550 | I19: мука пшен | J19: кг | K19: =(H42++H62+H69)/1000 -> 0.07 | M19: -0.07
A20: сыр | C20: 10.2 | D20: 10.2 | E20: =C20*E4 -> 102 | F20: =D20*F4 -> 102 | H20: =E20+F20 -> 204 | I20: гречка | J20: кг | M20: 0.00
A21: масло сливочное | C21: 5 | D21: 5 | E21: =C21*E4 -> 50 | F21: =D21*F4 -> 50 | H21: =E21+F21 -> 100 | I21: рис | J21: кг | K21: =H44/1000 -> 0.86 | M21: -0.86
A22: 2-ОЙ ЗАВТРАК | I22: пшено | J22: кг | M22: 0.00
A23: Сок в ассортименте | C23: 200 | D23: 180 | E23: =C23*E4 -> 2000 | F23: =D23*F4 -> 1800 | H23: =E23+F23 -> 3800 | I23: перловка | J23: кг | M23: 0.00
A24: ОБЕД | I24: вермишель | J24: кг | K24: =H7/1000 -> 0.30 | M24: -0.30
A25: Икра кабачковая | C25: 30.6 | D25: 51 | E25: =C25*E4 -> 306 | F25: =D25*F4 -> 510 | H25: =E25+F25 -> 816 | I25: горох | J25: кг | M25: =L25-K25 -> 0.00
A26: Суп из овощей на мясном бульоне со сметаной | B26: капуста свежая | C26: 23.75 | D26: 31.25 | E26: =C26*E4 -> 237.5 | F26: =D26*F4 -> 312.5 | G26: =D26*G3 -> 312.5 | H26: =E26+F26+G26 -> 862.5 | I26: пшеничная | J26: кг | M26: 0.00
B27: картофель | C27: 57.19 | D27: 77.14 | E27: =C27*E4 -> 571.9 | F27: =D27*F4 -> 771.4 | G27: =D27*G3 -> 771.4 | H27: =E27+F27+G27 -> 2114.7 | I27: полба | J27: кг | M27: 0.00
B28: морковь | C28: 9.4 | D28: 12.5 | E28: =C28*E4 -> 94 | F28: =D28*F4 -> 125 | G28: =D28*G3 -> 125 | H28: 344 | I28: сахар песок | J28: кг | K28: =(H10+H15+H49+H65+H72)/1000 -> 0.35 | M28: -0.35
B29: лук | C29: 9.6 | D29: 12 | E29: =C29*E4 -> 96 | F29: =D29*F4 -> 120 | G29: =D29*G3 -> 120 | H29: 336 | I29: макароны | J29: кг | M29: 0.00
B30: масло раст. | C30: 3 | D30: 4 | E30: =C30*E4 -> 30 | F30: =D30*F4 -> 40 | G30: =D30*G3 -> 40 | H30: 110 | I30: печенье | J30: кг | M30: 0.00
B31: соль | C31: 0.5 | D31: 0.8 | E31: =C31*E4 -> 5 | F31: =D31*F4 -> 8 | G31: =D31*G3 -> 8 | H31: 21 | I31: какао | J31: кг | K31: =H14/1000 -> 0.037 | M31: -0.037
B32: бульон | C32: 112.5 | D32: 130 | E32: =C32*E4 -> 1125 | F32: =D32*F4 -> 1300 | G32: =D32*G3 -> 1300 | H32: =E32+F32+G32 -> 3725 | I32: кофе | J32: кг | M32: 0.000
B33: сметана | C33: 5 | D33: 7 | E33: =C33*E4 -> 50 | F33: =D33*F4 -> 70 | G33: =D33*G3 -> 70 | H33: =E33+F33+G33 -> 190 | I33: заварка | J33: кг | K33: =H64/1000 -> 0.017 | M33: -0.017
A34: Гуляш из отварной говядины | I34: дрожжи | J34: кг | M34: 0.000
A35: говядина (лопатка) | C35: 48 | D35: 64 | E35: =C35*E4 -> 480 | F35: =D35*F4 -> 640 | H35: 1120 | I35: сок | J35: л | K35: =F23/1000 -> 1.8 | M35: -1.80
A36: морковь | C36: 13.13 | D36: 17.5 | E36: =C36*E4 -> 131.3 | F36: =D36*F4 -> 175 | H36: 306.3 | I36: соль | J36: кг | K36: =(H11+H31+H38+H45+H58+H73)/1000 -> 0.07 | M36: -0.07
A37: лук | C37: 6.36 | D37: 8.5 | E37: =C37*E4 -> 63.6 | F37: =D37*F4 -> 85 | H37: 148.6 | I37: картофель | J37: кг | K37: =(H27+H55)/1000 -> 5.68 | M37: -5.68
A38: соль | C38: 0.3 | D38: 0.4 | E38: =C38*E4 -> 3 | F38: =D38*F4 -> 4 | H38: 7 | I38: томат паста | J38: л | K38: =H40/1000 -> 0.02 | M38: -0.02
A39: масло растительное | C39: 2 | D39: 2.7 | E39: =C39*E4 -> 20 | F39: =D39*F4 -> 27 | H39: =E39+F39 -> 47 | I39: сол.огурцы | J39: л | M39: 0.00
A40: томатная паста | C40: 0.9 | D40: 1.2 | E40: =C40*E4 -> 9 | F40: =D40*F4 -> 12 | H40: 21 | I40: капуста св | J40: кг | K40: =H26/1000 -> 0.86 | M40: -0.86
A41: вода | C41: 22.5 | D41: 30 | E41: =C41*E4 -> 225 | F41: =D41*F4 -> 300 | H41: 525 | I41: капуста цветная с/м | J41: кг | M41: 0.00
A42: мука пшеничная | C42: 1.5 | D42: 2 | E42: =C42*E4 -> 15 | F42: =D42*F4 -> 20 | H42: 35 | I42: лук | J42: кг | K42: =(H29+H37+H57)/1000 -> 0.72 | M42: -0.72
A43: Рис отварной с маслом сливочным | I43: морковь | J43: кг | K43: =(H28+H36)/1000 -> 0.65 | M43: -0.65
A44: рис | C44: 39.3 | D44: 46.4 | E44: =C44*E4 -> 393 | F44: =D44*F4 -> 464 | H44: =E44+F44 -> 857 | I44: фрукты | J44: кг | M44: 0.00
A45: соль | C45: 0.5 | D45: 0.6 | E45: =C45*E4 -> 5 | F45: =D45*F4 -> 6 | H45: =E45+F45 -> 11 | I45: яблоки | J45: кг | K45: =H47/1000 -> 0.59 | M45: -0.59
A46: масло сливочное | C46: 1.5 | D46: 1.8 | E46: =C46*E4 -> 15 | F46: =D46*F4 -> 18 | H46: =E46+F46 -> 33 | I46: лимон | J46: кг | K46: =H66/1000 -> 0.14 | M46: -0.14
A47: Напиток из яблок | B47: яблоки | C47: 27.4 | D47: 31.92 | E47: =C47*E4 -> 274 | F47: =D47*F4 -> 319.2 | H47: =E47+F47 -> 593.2 | I47: кисель | J47: кг | M47: 0.00
B48: вода | C48: 152 | D48: 183 | E48: =E4 -> 10 | F48: =D48*F4 -> 1830 | H48: =E48+F48 -> 1840 | I48: сухофрукты | J48: кг | M48: 0.00
B49: сахар | C49: 5 | D49: 6 | E49: =C49*E4 -> 50 | F49: =D49*F4 -> 60 | H49: =E49+F49 -> 110 | I49: изюм | J49: кг | M49: 0.00
A50: хлеб ржаной | C50: 40 | D50: 45 | E50: =C50*E4 -> 400 | F50: =D50*F4 -> 450 | G50: =(G3+G4)*D50 -> 450 | H50: =E50+F50+G50 -> 1300 | I50: сухари панировочные | J50: кг | K50: =H59/1000 -> 0.06 | M50: =L50-K50 -> -0.06
A51: УПЛОТНЕННЫЙ ПОЛДНИК | I51: батон нарезной | J51: кг | K51: =H19/1000 -> 0.55 | M51: -0.55
A52: Молоко кипяченое | C52: 158 | D52: 189 | E52: =C52*E4 -> 1580 | F52: =D52*F4 -> 1890 | H52: =E52+F52 -> 3470 | I52: хлеб пшеничный | J52: кг | K52: =H67/1000 -> 0.50 | M52: -0.50
A53: Запеканка картофельная с мясом птицы | B53: цыплята-бройлеры | C53: 52.36 | D53: 57.75 | E53: =C53*E4 -> 523.6 | F53: =D53*F4 -> 577.5 | H53: =E53+F53 -> 1101.1 | I53: хлеб ржаной | J53: кг | K53: =H50/1000 -> 1.30 | M53: -1.30
B54: фарш куриный | C54: 35.7 | D54: 39.38 | E54: =C54*E4 -> 357 | F54: =D54*F4 -> 393.8 | H54: =E54+F54 -> 750.8 | I54: капуста морская | J54: кг | M54: 0.00
B55: картофель | C55: 165.6 | D55: 190.7 | E55: =C55*E4 -> 1656 | F55: =D55*F4 -> 1907 | H55: 3563 | I55: кукуруза консерв | J55: кг | M55: 0.00
B56: масло сливочное | C56: 4 | D56: 4.6 | E56: =C56*E4 -> 40 | F56: =D56*F4 -> 46 | H56: 86 | I56: сок 0,2 | J56: шт | K56: =E23/200 -> 10 | M56: -10
B57: лук | C57: 10.8 | D57: 12.72 | E57: =C57*E4 -> 108 | F57: =D57*F4 -> 127.2 | H57: 235.2 | I57: икра кабачковая | J57: кг | K57: =H25/1000 -> 0.82 | M57: -0.82
B58: соль | C58: 0.5 | D58: 0.6 | E58: =C58*E4 -> 5 | F58: =D58*F4 -> 6 | H58: 11 | I58: курага | J58: кг | M58: 0.00
B59: сухари панировоч. | C59: 2.4 | D59: 3.2 | E59: =C59*E4 -> 24 | F59: =D59*F4 -> 32 | H59: 56
B60: масло раст. | C60: 1.6 | D60: 1.8 | E60: =C60*E4 -> 16 | F60: =D60*F4 -> 18 | H60: 34
A61: Сметанный соус | B61: сметана | C61: 5 | D61: 7.5 | E61: =C61*E4 -> 50 | F61: =D61*F4 -> 75 | H61: =E61+F61 -> 125
B62: мука пшеничная | C62: 1.3 | D62: 2 | E62: =C62*E4 -> 13 | F62: =D62*F4 -> 20 | H62: 33
B63: вода | C63: 15 | D63: 22.5 | E63: =C63*E4 -> 150 | F63: =D63*F4 -> 225 | H63: 375
A64: Чай с сахаром и лимоном | B64: чай весовой | C64: 0.8 | D64: 0.9 | E64: =C64*E4 -> 8 | F64: =D64*F4 -> 9 | H64: =E64+F64 -> 17
B65: сахар | C65: 5 | D65: 6 | E65: =C65*E4 -> 50 | F65: =D65*F4 -> 60 | H65: =E65+F65 -> 110
B66: лимон | C66: 5.55 | D66: 8 | E66: =C66*E4 -> 55.5 | F66: =D66*F4 -> 80 | H66: =E66+F66 -> 135.5
A67: хлеб пшеничный | C67: 20 | D67: 30 | E67: =C67*E4 -> 200 | F67: =D67*F4 -> 300 | H67: =E67+F67 -> 500

Sheet 6 день
A1: меню на 6 день | C1: ГРАММ НА 1 РЕБЕНКА | E1: КОЛ-ВО ДЕТЕЙ | G1: Сотрудники | H1: ИТОГО | I1: продукты к выдаче | J1: ед.изм | K1: ИТОГО на день | L1: Выдано | M1: Перерасход (экономия)
I2: индейка филе | J2: кг | M2: =L2-K2 -> 0.00 | N2: =B3 -> 00:00:00
A3: Дата | C3: ЯСЛИ | D3: САД | E3: ЯСЛИ | F3: САД | G3: 10 | H3: первое | I3: птица | J3: кг | K3: =(H35+H41)/1000 -> 2.48 | M3: -2.48
E4: 10 | F4: 10 | H4: второе | I4: фарш куриный | J4: кг | K4: =H36/1000 -> 0.48 | M4: -0.48
A5: ЗАВТРАК | I5: минтай | J5: кг | M5: 0.00
A6: Каша пшенная молочная с маслом | I6: масло слив | J6: кг | K6: =(H12+H20+H44)/1000 -> 0.26 | M6: -0.26
A7: пшено | C7: 17.7 | D7: 22.5 | E7: =C7*E4 -> 177 | F7: =D7*F4 -> 225 | H7: =E7+F7 -> 402 | I7: масло раст | J7: л | K7: =(H26+H33)/1000 -> 0.15 | M7: -0.15
A8: молоко | C8: 70 | D8: 90 | E8: =C8*E4 -> 700 | F8: =D8*F4 -> 900 | H8: 1600 | I8: молоко | J8: л | K8: =(H8+H16)/1000 -> 3.34 | M8: -3.34
A9: вода | C9: 53 | D9: 68 | E9: =C9*E4 -> 530 | F9: =D9*F4 -> 680 | H9: 1210 | I9: молоко сгущ | J9: л | M9: 0.00
A10: Сахар | C10: 2 | D10: 2.5 | E10: =C10*E4 -> 20 | F10: =D10*F4 -> 25 | H10: 45 | I10: кефир | J10: шт. | M10: 0
A11: соль | C11: 0.4 | D11: 0.5 | E11: =C11*E4 -> 4 | F11: =D11*F4 -> 5 | H11: 9 | I11: ряженка | J11: шт. | M11: 0
A12: масло сливочное | C12: 4 | D12: 4 | E12: =C12*E4 -> 40 | F12: =D12*F4 -> 40 | H12: 80 | I12: катык | J12: шт. | K12: =H52/450 -> 8 | M12: -8
A13: чай с молоком, сахаром | I13: напиток ацидофильный | J13: шт. | M13: 0
A14: заварка | C14: 0.45 | D14: 0.45 | E14: =C14*E4 -> 4.5 | F14: =D14*F4 -> 4.5 | H14: =E14+F14 -> 9 | I14: сметана | J14: л | K14: =(H40+H59)/1000 -> 0.30 | M14: -0.30
A15: сахар | C15: 6 | D15: 6 | E15: =C15*E4 -> 60 | F15: =D15*F4 -> 60 | H15: =E15+F15 -> 120 | I15: творог | J15: шт. | K15: =H55/250 -> 8 | M15: -7.65
A16: молоко | C16: 82 | D16: 92 | E16: =C16*E4 -> 820 | F16: =D16*F4 -> 920 | H16: =E16+F16 -> 1740 | I16: сыр | J16: кг | M16: 0.00
A17: вода | C17: 90 | D17: 90 | E17: =C17*E4 -> 900 | F17: =D17*F4 -> 900 | H17: =E17+F17 -> 1800 | I17: яйцо | J17: шт | K17: =(H38+H57)/48 -> 4 | M17: -4
A18: бутерброд с маслом слив. | I18: мука пшен | J18: кг | K18: =H56/1000 -> 0.29 | M18: -0.29
A19: батон нарезной | C19: 25 | D19: 30 | E19: =C19*E4 -> 250 | F19: =D19*F4 -> 300 | H19: =E19+F19 -> 550 | I19: манка | J19: кг | M19: 0.00
A20: масло сливочное | C20: 5 | D20: 5 | E20: =C20*E4 -> 50 | F20: =D20*F4 -> 50 | H20: =E20+F20 -> 100 | I20: рис | J20: кг | M20: 0.00
A21: 2 - ОЙ ЗАВТРАК | I21: пшено | J21: кг | K21: =H7/1000 -> 0.40 | M21: -0.40
A22: Фрукты свежие | C22: 100 | D22: 100 | E22: =C22*E4 -> 1000 | F22: =D22*F4 -> 1000 | H22: =E22+F22 -> 2000 | I22: перловка | J22: кг | M22: 0.00
A23: ОБЕД | I23: горох | J23: кг | M23: 0.00
A24: Салат из квашеной капусты | B24: капуста квашеная | C24: 51.5 | D24: 77.22 | E24: =C24*E4 -> 515 | F24: =D24*F4 -> 772.2 | H24: =E24+F24 -> 1287.2 | I24: пшеничная | J24: кг | M24: 0.00
B25: сахар | C25: 2 | D25: 3 | E25: =C25*E4 -> 20 | F25: =D25*F4 -> 30 | H25: =E25+F25 -> 50 | I25: полба | J25: кг | M25: 0.00
B26: масло растительное | C26: 2 | D26: 3 | E26: =C26*E4 -> 20 | F26: =D26*F4 -> 30 | H26: =E26+F26 -> 50 | I26: кукурузная крупа | J26: кг | M26: 0.00
A27: Рассольник Домашний на курином бульоне с куриными фрикадельками, со сметаной | I27: сахар песок | J27: кг | K27: =(H10+H15+H25+H49+H58+H64)/1000 -> 0.57 | M27: -0.57
A28: капуста свежая | C28: 15 | D28: 18 | E28: =C28*E4 -> 150 | F28: =D28*F4 -> 180 | G28: =D28*G3 -> 180 | H28: =F28+E28+G28 -> 510 | I28: вермишель | J28: кг | M28: 0.00
A29: картофель | C29: 59.85 | D29: 71.82 | E29: =C29*E4 -> 598.5 | F29: =D29*F4 -> 718.2 | G29: =D29*G3 -> 718.2 | H29: =E29+F29+G29 -> 2034.9 | I29: мармелад | J29: кг | M29: 0.00
A30: морковь | C30: 7.5 | D30: 9 | E30: =C30*E4 -> 75 | F30: =D30*F4 -> 90 | G30: =D30*G3 -> 90 | H30: =E30+F30+G30 -> 255 | I30: печенье | J30: кг | K30: =H53/1000 -> 0.60 | M30: -0.60
A31: лук | C31: 7.2 | D31: 8.64 | E31: =C31*E4 -> 72 | F31: =D31*F4 -> 86.4 | G31: =D31*G3 -> 86.4 | H31: 244.8 | I31: какао | J31: кг | M31: 0.000
A32: огурцы соленые | C32: 16.38 | D32: 19.66 | E32: =C32*E4 -> 163.8 | F32: =D32*F4 -> 196.6 | G32: =D32*G3 -> 196.6 | H32: =E32+F32+G32 -> 557 | I32: кофе | J32: кг | M32: 0.000
A33: масло раст. | C33: 3 | D33: 3.6 | E33: =C33*E4 -> 30 | F33: =D33*F4 -> 36 | G33: =D33*G3 -> 36 | H33: 102 | I33: заварка | J33: кг | K33: =H14/1000 -> 0.009 | M33: -0.009
A34: соль | C34: 0.5 | D34: 0.7 | E34: =C34*E4 -> 5 | F34: =D34*F4 -> 7 | G34: =D34*G3 -> 7 | H34: 19 | I34: лимонная кислота | J34: кг | M34: 0.000
A35: цыплята-бройлеры с/м | C35: 17.5 | D35: 26.33 | E35: =C35*E4 -> 175 | F35: =D35*F4 -> 263.3 | G35: =D35*G3 -> 263.3 | H35: 701.6 | I35: шиповник | J35: кг | K35: =H62/1000 -> 0.34 | M35: -0.34
A36: Фрикадельки | B36: фарш куриный | C36: 11.97 | D36: 17.96 | E36: =C36*E4 -> 119.7 | F36: =D36*F4 -> 179.6 | G36: =D36*G3 -> 179.6 | H36: =E36+F36+G36 -> 478.9 | I36: сок | J36: л | M36: 0.00
B37: лук | C37: 1.19 | D37: 1.79 | E37: =C37*E4 -> 11.9 | F37: =D37*F4 -> 17.9 | G37: =D37*G3 -> 17.9 | H37: =E37+F37+G37 -> 47.7 | I37: соль | J37: кг | K37: =(H11+H39+H34+H46+H60)/1000 -> 0.05 | M37: -0.05
B38: яйцо | C38: 0.96 | D38: 1.44 | E38: =C38*E4 -> 9.6 | F38: =D38*F4 -> 14.4 | G38: =D38*G3 -> 14.4 | H38: =E38+F38+G38 -> 38.4 | I38: картофель | J38: кг | K38: =(H29+H42)/1000 -> 5.22 | M38: -5.22
B39: соль | C39: 0.1 | D39: 0.15 | E39: =C39*E4 -> 1 | F39: =D39*F4 -> 1.5 | G39: =D39*G3 -> 1.5 | H39: =E39+F39+G39 -> 4 | I39: капуста квашеная | J39: л | K39: =H24/1000 -> 1.287 | M39: -1.29
A40: сметана | C40: 6 | D40: 7 | E40: =C40*E4 -> 60 | F40: =D40*F4 -> 70 | G40: =D40*G3 -> 70 | H40: =E40+F40+G40 -> 200 | I40: огурцы св | J40: л | M40: 0.00
A41: Жаркое из отварной птицы по-домашнему | B41: птица | C41: 80.5 | D41: 97.5 | E41: =C41*E4 -> 805 | F41: =D41*F4 -> 975 | H41: =E41+F41 -> 1780 | I41: капуста | J41: кг | K41: =H28/1000 -> 0.51 | M41: -0.51
B42: картофель | C42: 144.7 | D42: 173.7 | E42: =C42*E4 -> 1447 | F42: =D42*F4 -> 1737 | H42: 3184 | I42: лук | J42: кг | K42: =(H31+H37+H45)/1000 -> 0.54 | M42: -0.54
B43: морковь | C43: 5.9 | D43: 7.1 | E43: =C43*E4 -> 59 | F43: =D43*F4 -> 71 | H43: 130 | I43: морковь | J43: кг | K43: =(H30+H43)/1000 -> 0.39 | M43: -0.39
B44: масло сливочное | C44: 3.8 | D44: 4.6 | E44: =C44*E4 -> 38 | F44: =D44*F4 -> 46 | H44: 84 | I44: свекла | J44: кг | M44: 0.00
B45: лук | C45: 11.3 | D45: 13.6 | E45: =C45*E4 -> 113 | F45: =D45*F4 -> 136 | H45: 249 | I45: фрукты | J45: кг | K45: =H22/1000 -> 2.00 | M45: -2.00
B46: соль | C46: 0.6 | D46: 0.7 | E46: =C46*E4 -> 6 | F46: =D46*F4 -> 7 | H46: 13 | I46: яблоки | J46: кг | M46: 0.00
A47: Кисель | B47: кисель | C47: 17.5 | D47: 21 | E47: =C47*E4 -> 175 | F47: =D47*F4 -> 210 | H47: =E47+F47 -> 385 | I47: лимон | J47: кг | M47: 0.00
B48: вода | C48: 150 | D48: 180 | E48: =C48*E4 -> 1500 | F48: =D48*F4 -> 1800 | H48: =E48+F48 -> 3300 | I48: огурцы соленые | J48: л | K48: =H32/1000 -> 0.56 | M48: -0.56
B49: сахар | C49: 5 | D49: 6 | E49: =C49*E4 -> 50 | F49: =D49*F4 -> 60 | H49: =E49+F49 -> 110 | I49: кисель | J49: кг | K49: =H47/1000 -> 0.39 | M49: -0.39
A50: хлеб ржаной | C50: 35 | D50: 45 | E50: =C50*E4 -> 350 | F50: =D50*F4 -> 450 | G50: =(G3+G4)*D50 -> 450 | H50: =E50+F50+G50 -> 1250 | I50: повидло | J50: кг | M50: 0.00
A51: УПЛОТНЕННЫЙ ПОЛДНИК | I51: изюм | J51: кг | M51: 0.00
A52: катык | C52: 155 | D52: 185 | E52: =C52*E4 -> 1550 | F52: =D52*F4 -> 1850 | H52: =E52+F52 -> 3400 | I52: сухари панировочные | J52: кг | M52: 0.00
A53: печенье | C53: 20 | D53: 40 | E53: =C53*E4 -> 200 | F53: =D53*F4 -> 400 | H53: =E53+F53 -> 600 | I53: батон нарезной | J53: кг | K53: =H19/1000 -> 0.550 | M53: -0.55
A54: Вареники ленивые со сметанным соусом | I54: хлеб пшеничный | J54: кг | M54: 0.00
A55: творог | C55: 87.89 | D55: 103.4 | E55: =C55*E4 -> 878.9 | F55: =D55*F4 -> 1034 | H55: =E55+F55 -> 1912.9 | I55: хлеб ржаной | J55: кг | K55: =H50/1000 -> 1.25 | M55: -1.25
A56: мука | C56: 13.5 | D56: 15.7 | E56: =C56*E4 -> 135 | F56: =D56*F4 -> 157 | H56: 292 | I56: кукуруза консерв | J56: кг | M56: =L56-K56 -> 0.00
A57: яйцо | C57: 7.56 | D57: 8.88 | E57: =C57*E4 -> 75.6 | F57: =D57*F4 -> 88.8 | H57: 164.4 | I57: сок 0,200 | J57: шт | M57: =L57-K57 -> 0.00
A58: сахар | C58: 6.3 | D58: 7.4 | E58: =C58*E4 -> 63 | F58: =D58*F4 -> 74 | H58: 137
A59: сметана | C59: 5 | D59: 5 | E59: =C59*E4 -> 50 | F59: =D59*F4 -> 50 | H59: 100
A60: соль | C60: 0.25 | D60: 0.3 | E60: =C60*E4 -> 2.5 | F60: =D60*F4 -> 3 | H60: 5.5
A61: вода | C61: 15 | D61: 5.2 | E61: =C61*E4 -> 150 | F61: =D61*F4 -> 52 | H61: 202
A62: Напиток из шиповника | B62: шиповник | C62: 15.3 | D62: 18.4 | E62: =C62*E4 -> 153 | F62: =D62*F4 -> 184 | H62: =E62+F62 -> 337
B63: вода | C63: 150 | D63: 180 | E63: =C63*E4 -> 1500 | F63: =D63*F4 -> 1800 | H63: =E63+F63 -> 3300
B64: сахар | C64: 5 | D64: 6 | E64: =C64*E4 -> 50 | F64: =D64*F4 -> 60 | H64: =E64+F64 -> 110

Sheet 7 день
A1: меню на 7 день | C1: ГРАММ НА 1 РЕБЕНКА | E1: КОЛ-ВО ДЕТЕЙ | G1: Сотрудники | H1: ИТОГО | I1: продукты к выдаче | J1: ед.изм | K1: ИТОГО на день | L1: Выдано | M1: Перерасход (экономия)
I2: мясо (котлетное) | J2: кг | K2: =H29/1000 -> 0.48 | M2: =L2-K2 -> -0.48 | N2: =B3 -> 00:00:00
A3: Дата | C3: ЯСЛИ | D3: САД | E3: ЯСЛИ | F3: САД | G3: 10 | H3: первое | I3: фарш готовый | J3: кг | K3: =(H30+H45)/1000 -> 1.66 | M3: =L3-K3 -> -1.66
E4: 10 | F4: 10 | H4: второе | I4: мясо (говядина) | J4: кг | M4: 0.00
A5: ЗАВТРАК | I5: птица | J5: кг | M5: 0.00
A6: Каша рисовая молочная с маслом слив. | I6: фарш минтая | J6: кг | K6: =H78/1000 -> 0.95 | M6: -0.95
A7: рис | C7: 17.7 | D7: 22.5 | E7: =C7*E4 -> 177 | F7: =D7*F4 -> 225 | H7: =E7+F7 -> 402 | I7: минтай | J7: кг | K7: =H77/1000 -> 1.22 | M7: -1.22
A8: Сахар | C8: 2 | D8: 2.5 | E8: =C8*E4 -> 20 | F8: =D8*F4 -> 25 | H8: 45 | I8: масло слив | J8: кг | K8: =(H11+H21+H41+H56+H70+H90)/1000 -> 0.30 | M8: -0.30
A9: молоко | C9: 70 | D9: 90 | E9: =C9*E4 -> 700 | F9: =D9*F4 -> 900 | H9: 1600 | I9: масло раст | J9: л | K9: =(H27+H37+H50+H74+H81)/1000 -> 0.27 | M9: -0.27
A10: вода | C10: 53 | D10: 68 | E10: =C10*E4 -> 530 | F10: =D10*F4 -> 680 | H10: 1210 | I10: молоко | J10: л | K10: =(H9+H16)/1000 -> 3.40 | M10: -3.40
A11: масло сливочное | C11: 3 | D11: 3 | E11: =C11*E4 -> 30 | F11: =D11*F4 -> 30 | H11: 60 | I11: молоко сгущ | J11: л | M11: 0.00
A12: соль | C12: 0.4 | D12: 0.5 | E12: =C12*E4 -> 4 | F12: =D12*F4 -> 5 | H12: 9 | I12: кефир | J12: шт. | K12: =H66/450 -> 8 | M12: -7.56
A13: кофейный напиток | I13: ряженка | J13: шт. | M13: 0.00
A14: кофе | C14: 2.5 | D14: 2.5 | E14: =C14*E4 -> 25 | F14: =D14*F4 -> 25 | H14: =E14+F14 -> 50 | I14: катык | J14: шт. | M14: 0.00
A15: сахар | C15: 6 | D15: 6 | E15: =C15*E4 -> 60 | F15: =D15*F4 -> 60 | H15: =E15+F15 -> 120 | I15: напиток ацидофильный | J15: шт. | M15: 0.00
A16: молоко | C16: 90 | D16: 90 | E16: =C16*E4 -> 900 | F16: =D16*F4 -> 900 | H16: =E16+F16 -> 1800 | I16: сметана | J16: л | M16: 0.00
A17: вода | C17: 108 | D17: 108 | E17: =C17*E4 -> 1080 | F17: =D17*F4 -> 1080 | H17: =E17+F17 -> 2160 | I17: творог | J17: шт. | K17: =H71/250 -> 2 | M17: -1.99
A18: бутерброд с маслом слив., сыр порционно | I18: сыр | J18: кг | K18: =H20/1000 -> 0.20 | M18: -0.20
A19: батон нарезной | C19: 25 | D19: 30 | E19: =C19*E4 -> 250 | F19: =D19*F4 -> 300 | H19: =E19+F19 -> 550 | I19: яйцо | J19: шт. | K19: =(H32+H42+H75+H84)/48 -> 8 | M19: -8
A20: сыр порционно | C20: 10.2 | D20: 10.2 | E20: =C20*E4 -> 102 | F20: =D20*F4 -> 102 | H20: =E20+F20 -> 204 | I20: мука пшен | J20: кг | K20: =(H40+H52+H68)/1000 -> 0.90 | M20: -0.90
A21: масло сливочное | C21: 5 | D21: 5 | E21: =C21*E4 -> 50 | F21: =D21*F4 -> 50 | H21: =E21+F21 -> 100 | I21: гречка | J21: кг | K21: =H87/1000 -> 1.02 | M21: -1.02
A22: 2-ОЙ ЗАВТРАК | I22: манка | J22: кг | K22: =H80/1000 -> 0.03 | M22: -0.03
A23: Сок в ассортименте | C23: 200 | D23: 180 | E23: =C23*E4 -> 2000 | F23: =D23*F4 -> 1800 | H23: =E23+F23 -> 3800 | I23: пшено | J23: кг | M23: 0.00
A24: ОБЕД | I24: перловка | J24: кг | M24: 0.00
A25: Салат из зеленого горошка к/с | I25: полба | J25: кг | M25: 0.00
A26: зеленый горошек к/с | C26: 48.1 | D26: 80.16 | E26: =C26*E4 -> 481 | F26: =D26*F4 -> 801.6 | H26: =E26+F26 -> 1282.6 | I26: рис | J26: кг | K26: =H7/1000 -> 0.40 | M26: -0.40
A27: масло раст. | C27: 1.5 | D27: 2.5 | E27: =C27*E4 -> 15 | F27: =D27*F4 -> 25 | H27: 40 | I27: сахар песок | J27: кг | K27: =(H8+H15+H65+H58+H63+H69+H85)/1000 -> 0.40 | M27: -0.40
A28: Суп картофельный с клёцками, с мясными фрикадельками | I28: вермишель (звездочка) | J28: кг | M28: 0.00
A29: говядина б/к (котлетное мясо) | C29: 11.97 | D29: 17.85 | E29: =C29*E4 -> 119.7 | F29: =D29*F4 -> 178.5 | G29: =D29*G3 -> 178.5 | H29: =G29+F29+E29 -> 476.7 | I29: печенье | J29: кг | M29: 0.00
A30: Фрикадельки | B30: фарш говяжий | C30: 11.97 | D30: 17.85 | E30: =C30*E4 -> 119.7 | F30: =D30*F4 -> 178.5 | G30: =D30*G3 -> 178.5 | H30: =G30+F30+E30 -> 476.7 | I30: вафли | J30: кг | M30: 0.00
B31: лук | C31: 1.19 | D31: 1.79 | E31: =C31*E4 -> 11.9 | F31: =D31*F4 -> 17.9 | G31: =D31*G3 -> 17.9 | H31: =G31+F31+E31 -> 47.7 | I31: какао | J31: кг | M31: 0.000
B32: яйцо | C32: 0.96 | D32: 1.44 | E32: =C32*E4 -> 9.6 | F32: =D32*F4 -> 14.4 | G32: =D32*G3 -> 14.4 | H32: =G32+F32+E32 -> 38.4 | I32: кофе | J32: кг | K32: =H14/1000 -> 0.050 | M32: -0.050
B33: соль | C33: 0.1 | D33: 0.15 | E33: =C33*E4 -> 1 | F33: =D33*F4 -> 1.5 | G33: =D33*G3 -> 1.5 | H33: =G33+F33+E33 -> 4 | I33: заварка | J33: кг | K33: =H92/1000 -> 0.009 | M33: -0.009
A34: картофель | C34: 66.6 | D34: 79.8 | E34: =C34*E4 -> 666 | F34: =D34*F4 -> 798 | G34: =D34*G3 -> 798 | H34: =E34+F34+G34 -> 2262 | I34: томат паста | J34: кг | K34: =H57/1000 -> 0.044 | M34: -0.044
A35: морковь | C35: 7.5 | D35: 9 | E35: =C35*E4 -> 75 | F35: =D35*F4 -> 90 | G35: =D35*G3 -> 90 | H35: =E35+F35+G35 -> 255 | I35: дрожжи | J35: кг | K35: =H72/1000 -> 0.005 | M35: -0.005
A36: лук | C36: 7.2 | D36: 8.6 | E36: =C36*E4 -> 72 | F36: =D36*F4 -> 86 | G36: =D36*G3 -> 86 | H36: 244 | I36: соленые огурцы | J36: кг | M36: 0.00
A37: масло раст. | C37: 1.5 | D37: 1.8 | E37: =C37*E4 -> 15 | F37: =D37*F4 -> 18 | G37: =D37*G3 -> 18 | H37: 51 | I37: сок | J37: л | K37: =F23/1000 -> 1.8 | M37: -1.80
A38: соль | C38: 0.5 | D38: 0.6 | E38: =C38*E4 -> 5 | F38: =D38*F4 -> 6 | G38: =D38*G3 -> 6 | H38: 17 | I38: соль | J38: кг | K38: =(H33+H73+H38+H44+H51+H53+H82+H88)/1000 -> 0.07 | M38: -0.07
A39: бульон | C39: 112.5 | D39: 135 | E39: =C39*E4 -> 1125 | F39: =D39*F4 -> 1350 | G39: =D39*G3 -> 1350 | H39: 3825 | I39: картофель | J39: кг | K39: =(H34+H46)/1000 -> 3.36 | M39: -3.36
A40: клёцки | B40: мука | C40: 4.6 | D40: 5.5 | E40: =C40*E4 -> 46 | F40: =D40*F4 -> 55 | G40: =D40*G3 -> 55 | H40: =G40+F40+E40 -> 156 | I40: зеленый горошек | J40: кг | K40: =H26/1000 -> 1.28 | M40: -1.28
B41: масло сливочное | C41: 0.5 | D41: 0.6 | E41: =C41*E4 -> 5 | F41: =D41*F4 -> 6 | G41: =D41*G3 -> 6 | H41: =G41+F41+E41 -> 17 | I41: капуста | J41: кг | K41: =H49/1000 -> 0.76 | M41: -0.76
B42: яйцо | C42: 1.6 | D42: 1.92 | E42: =C42*E4 -> 16 | F42: =D42*F4 -> 19.2 | G42: =D42*G3 -> 19.2 | H42: =G42+F42+E42 -> 54.4 | I42: лук | J42: кг | K42: =(H31+H36+H48+H55+H79+H86)/1000 -> 1.05 | M42: -1.05
B43: вода | C43: 7.3 | D43: 8.8 | E43: =C43*E4 -> 73 | F43: =D43*F4 -> 88 | G43: =D43*G3 -> 88 | H43: =G43+F43+E43 -> 249 | I43: морковь | J43: кг | K43: =(H35+H47+H54+H91)/1000 -> 1.25 | M43: -1.25
B44: соль | C44: 0.1 | D44: 0.16 | E44: =C44*E4 -> 1 | F44: =D44*F4 -> 1.6 | G44: =D44*G3 -> 1.6 | H44: =G44+F44+E44 -> 4.2 | I44: яблоки | J44: кг | M44: 0.00
A45: Рагу из овощей с мясным фаршем | B45: фарш говяжий | C45: 52.5 | D45: 65.6 | E45: =C45*E4 -> 525 | F45: =D45*F4 -> 656 | H45: 1181 | I45: фрукты свежие | J45: кг | M45: 0.00
B46: картофель | C46: 46.55 | D46: 63.44 | E46: =C46*E4 -> 465.5 | F46: =D46*F4 -> 634.4 | H46: 1099.9 | I46: повидло | J46: л | M46: 0.00
B47: морковь | C47: 23.4 | D47: 31.92 | E47: =C47*E4 -> 234 | F47: =D47*F4 -> 319.2 | H47: 553.2 | I47: сухофрукты | J47: кг | K47: =H62/1000 -> 0.28 | M47: -0.28
B48: лук | C48: 18.48 | D48: 24 | E48: =C48*E4 -> 184.8 | F48: =D48*F4 -> 240 | H48: 424.8 | I48: изюм | J48: кг | M48: 0.00
B49: капуста | C49: 32.13 | D49: 43.75 | E49: =C49*E4 -> 321.3 | F49: =D49*F4 -> 437.5 | H49: 758.8 | I49: урюк | J49: кг | M49: 0.00
B50: масло раст. | C50: 6 | D50: 7.5 | E50: =C50*E4 -> 60 | F50: =D50*F4 -> 75 | H50: =E50+F50 -> 135 | I50: сухари панировочные | J50: кг | K50: =H83/1000 -> 0.09 | M50: -0.09
B51: соль | C51: 0.5 | D51: 0.8 | E51: =C51*E4 -> 5 | F51: =D51*F4 -> 8 | H51: 13 | I51: батон нарезной | J51: кг | K51: =H19/1000 -> 0.55 | M51: -0.55
A52: соус | B52: мука | C52: 1.5 | D52: 1.8 | E52: =C52*E4 -> 15 | F52: =D52*F4 -> 18 | H52: =E52+F52 -> 33 | I52: хлеб пшеничный | J52: кг | K52: =H95/1000 -> 0.55 | M52: -0.55
B53: соль | C53: 0.33 | D53: 0.4 | E53: =C53*E4 -> 3.3 | F53: =D53*F4 -> 4 | H53: 7.3 | I53: хлеб ржаной | J53: кг | K53: =H60/1000 -> 1.25 | M53: -1.25
B54: морковь | C54: 2.66 | D54: 3.2 | E54: =C54*E4 -> 26.6 | F54: =D54*F4 -> 32 | H54: 58.6 | I54: сок 0,200 | J54: шт | K54: =E23/200 -> 10.00 | M54: -10
B55: лук | C55: 1.2 | D55: 1.44 | E55: =C55*E4 -> 12 | F55: =D55*F4 -> 14.4 | H55: 26.4 | I55: кукуруза к/с | J55: кг | M55: 0.00
B56: масло сливочное | C56: 2 | D56: 2.4 | E56: =C56*E4 -> 20 | F56: =D56*F4 -> 24 | H56: 44 | I56: мармелад | J56: кг | K56: =H94/1000 -> 0.27 | M56: =L56-K56 -> -0.27
B57: томатная паста | C57: 2 | D57: 2.4 | E57: =C57*E4 -> 20 | F57: =D57*F4 -> 24 | H57: 44 | I57: курага | J57: кг | M57: 0.00
B58: Сахар | C58: 0.33 | D58: 0.4 | E58: =C58*E4 -> 3.3 | F58: =D58*F4 -> 4 | H58: 7.3 | I58: капуста цветная | J58: кг | M58: 0.00
B59: вода | C59: 33 | D59: 40 | E59: =C59*E4 -> 330 | F59: =D59*F4 -> 400 | H59: 730
A60: хлеб ржаной | C60: 35 | D60: 45 | E60: =C60*E4 -> 350 | F60: =D60*F4 -> 450 | G60: =(G3+G4)*D60 -> 450 | H60: =E60+F60+G60 -> 1250
A61: Компот из сухофруктов
A62: сухофрукты | C62: 12.75 | D62: 15.3 | E62: =C62*E4 -> 127.5 | F62: =D62*F4 -> 153 | H62: =E62+F62 -> 280.5
A63: сахар | C63: 5 | D63: 6 | E63: =C63*E4 -> 50 | F63: =D63*F4 -> 60 | H63: =E63+F63 -> 110
A64: УПЛОТНЕННЫЙ ПОЛДНИК
A65: кефир | B65: сахар | C65: 2 | D65: 3 | E65: =C65*E4 -> 20 | F65: =D65*F4 -> 30 | H65: =F65+E65 -> 50
B66: кефир | C66: 155 | D66: 185 | E66: =C66*E4 -> 1550 | F66: =D66*F4 -> 1850 | H66: =E66+F66 -> 3400
A67: Ватрушка с творогом (ОБЕД)
A68: мука | C68: 28.6 | D68: 42.9 | E68: =C68*E4 -> 286 | F68: =D68*F4 -> 429 | H68: =E68+F68 -> 715
A69: сахар | C69: 2.5 | D69: 3.75 | E69: =C69*E4 -> 25 | F69: =D69*F4 -> 37.5 | H69: 62.5
A70: масло сливочное | C70: 1.2 | D70: 1.8 | E70: =C70*E4 -> 12 | F70: =D70*F4 -> 18 | H70: 30
A71: творог | C71: 19.7 | D71: 30 | E71: =C71*E4 -> 197 | F71: =D71*F4 -> 300 | H71: 497
A72: дрожжи | C72: 0.2 | D72: 0.3 | E72: =C72*E4 -> 2 | F72: =D72*F4 -> 3 | H72: 5
A73: соль | C73: 0.4 | D73: 0.6 | E73: =C73*E4 -> 4 | F73: =D73*F4 -> 6 | H73: 10
A74: масло растит. | C74: 0.4 | D74: 0.6 | E74: =C74*E4 -> 4 | F74: =D74*F4 -> 6 | H74: 10
A75: яйцо | C75: 3.96 | D75: 5.94 | E75: =C75*E4 -> 39.6 | F75: =D75*F4 -> 59.4 | H75: 99
A76: Биточки рубленные из рыбы
A77: рыба (минтай) | C77: 51 | D77: 71.4 | E77: =C77*E4 -> 510 | F77: =D77*F4 -> 714 | H77: =E77+F77 -> 1224
A78: фарш рыбный | C78: 39.4 | D78: 55.1 | E78: =C78*E4 -> 394 | F78: =D78*F4 -> 551 | H78: 945
A79: лук | C79: 11.1 | D79: 15.5 | E79: =C79*E4 -> 111 | F79: =D79*F4 -> 155 | H79: 266
A80: крупа манная | C80: 1.25 | D80: 1.8 | E80: =C80*E4 -> 12.5 | F80: =D80*F4 -> 18 | H80: 30.5
A81: масло растительное | C81: 1.3 | D81: 1.8 | E81: =C81*E4 -> 13 | F81: =D81*F4 -> 18 | H81: 31
A82: соль | C82: 0.4 | D82: 0.5 | E82: =C82*E4 -> 4 | F82: =D82*F4 -> 5 | H82: 9
A83: сухари панировоч. | C83: 3.8 | D83: 5.3 | E83: =C83*E4 -> 38 | F83: =D83*F4 -> 53 | H83: 91
A84: яйцо | C84: 9 | D84: 12.6 | E84: =C84*E4 -> 90 | F84: =D84*F4 -> 126 | H84: =E84+F84 -> 216
A85: сахар | C85: 0.1 | D85: 0.2 | E85: =C85*E4 -> 1 | F85: =D85*F4 -> 2 | H85: 3
A86: Каша гречневая рассыпчатая с овощами с маслом сливочным | B86: лук | C86: 2 | D86: 2.4 | E86: =C86*E4 -> 20 | F86: =D86*F4 -> 24 | H86: 44
B87: крупа гречневая | C87: 47.6 | D87: 54.7 | E87: =C87*E4 -> 476 | F87: =D87*F4 -> 547 | H87: 1023
B88: соль | C88: 0.3 | D88: 0.33 | E88: =C88*E4 -> 3 | F88: =D88*F4 -> 3.3 | H88: 6.3
B89: вода | C89: 71 | D89: 82 | E89: =C89*E4 -> 710 | F89: =D89*F4 -> 820 | H89: 1530
B90: масло сливочное | C90: 2 | D90: 3 | E90: =C90*E4 -> 20 | F90: =D90*F4 -> 30 | H90: 50
B91: морковь | C91: 16.5 | D91: 22 | E91: =C91*E4 -> 165 | F91: =D91*F4 -> 220 | H91: 385
A92: чай с мармеладом | B92: чай | C92: 0.45 | D92: 0.45 | E92: =C92*E4 -> 4.5 | F92: =D92*F4 -> 4.5 | H92: 9
B93: вода | C93: 160 | D93: 160 | E93: =C93*E4 -> 1600 | F93: =D93*F4 -> 1600 | H93: 3200
B94: мармелад | C94: 13.5 | D94: 13.5 | E94: =C94*E4 -> 135 | F94: =D94*F4 -> 135 | H94: 270
A95: хлеб пшеничный | C95: 25 | D95: 30 | E95: =C95*E4 -> 250 | F95: =D95*F4 -> 300 | H95: 550

Sheet 8 день
A1: меню на 8 день | C1: ГРАММ НА 1 РЕБЕНКА | E1: КОЛ-ВО ДЕТЕЙ | G1: Сотрудники | H1: ИТОГО | I1: продукты к выдаче | J1: ед.изм | K1: ИТОГО на день | L1: Выдано | M1: Перерасход (экономия)
I2: мясо (котлетное) | J2: кг | M2: =L2-K2 -> 0.00 | N2: =B3 -> 00:00:00
A3: Дата | C3: ЯСЛИ | D3: САД | E3: ЯСЛИ | F3: САД | G3: 10 | H3: первое | I3: фарш готовый | J3: кг | M3: =L3-K3 -> 0.00
E4: 10 | F4: 10 | H4: второе | I4: птица | J4: кг | K4: =(H31+H41)/1000 -> 1.58 | M4: -1.58
A5: ЗАВТРАК | I5: фарш куриный | J5: кг | K5: =(H32+H42)/1000 -> 1.08 | M5: -1.08
A6: Каша манная | I6: минтай | J6: кг | M6: 0.00
A7: манка | C7: 18 | D7: 22.5 | E7: =C7*E4 -> 180 | F7: =D7*F4 -> 225 | H7: =E7+F7 -> 405 | I7: масло слив | J7: кг | K7: =(H11+H19+H55+H67)/1000 -> 0.29 | M7: -0.29
A8: молоко | C8: 123 | D8: 158 | E8: =C8*E4 -> 1230 | F8: =D8*F4 -> 1580 | H8: =E8+F8 -> 2810 | I8: масло раст | J8: л | K8: =(H27+H37+H47)/1000 -> 0.20 | M8: -0.20
A9: Сахар | C9: 2 | D9: 2.5 | E9: =C9*E4 -> 20 | F9: =D9*F4 -> 25 | H9: =E9+F9 -> 45 | I9: молоко | J9: л | K9: =(H8+H15+H63+H66)/1000 -> 9.88 | M9: -9.88
A10: соль | C10: 0.4 | D10: 0.5 | E10: =C10*E4 -> 4 | F10: =D10*F4 -> 5 | H10: =E10+F10 -> 9 | I10: молоко сгущ | J10: л | M10: 0.00
A11: масло сливочное | C11: 3 | D11: 5 | E11: =C11*E4 -> 30 | F11: =D11*F4 -> 50 | H11: =E11+F11 -> 80 | I11: кефир | J11: шт. | M11: 0.00
A12: какао с молоком | I12: ряженка | J12: шт. | M12: 0.00
A13: какао | C13: 2 | D13: 2 | E13: =C13*E4 -> 20 | F13: =D13*F4 -> 20 | H13: =E13+F13 -> 40 | I13: катык | J13: шт. | M13: 0.00
A14: сахар | C14: 6 | D14: 6 | E14: =C14*E4 -> 60 | F14: =D14*F4 -> 60 | H14: =E14+F14 -> 120 | I14: напиток ацидофильный | J14: шт. | M14: 0.00
A15: молоко | C15: 110 | D15: 110 | E15: =C15*E4 -> 1100 | F15: =D15*F4 -> 1100 | H15: =E15+F15 -> 2200 | I15: сметана | J15: л | K15: =(H38+H49)/1000 -> 0.30 | M15: -0.30
A16: вода | C16: 80 | D16: 80 | E16: =C16*E4 -> 800 | F16: =D16*F4 -> 800 | H16: =E16+F16 -> 1600 | I16: творог | J16: шт. | M16: 0.00
A17: бутерброд с маслом, сыром | I17: сыр | J17: кг | M17: 0.00
A18: батон нарезной | C18: 25 | D18: 30 | E18: =C18*E4 -> 250 | F18: =D18*F4 -> 300 | H18: =E18+F18 -> 550 | I18: яйцо | J18: шт | K18: =H65/48 -> 38 | M18: -38
A19: масло сливочное | C19: 5 | D19: 5 | E19: =C19*E4 -> 50 | F19: =D19*F4 -> 50 | H19: =E19+F19 -> 100 | I19: мука пшен | J19: кг | K19: =(H44+H50)/1000 -> 0.10 | M19: -0.10
A20: 2-ОЙ ЗАВТРАК | I20: гречка | J20: кг | M20: 0.00
A21: Фрукты свежие | C21: 150 | D21: 150 | E21: =C21*E4 -> 1500 | F21: =D21*F4 -> 1500 | H21: =E21+F21 -> 3000 | I21: манка | J21: кг | K21: =H7/1000 -> 0.41 | M21: -0.41
A22: ОБЕД | I22: рис | J22: кг | K22: =H43/1000 -> 0.08 | M22: -0.08
A23: Винегрет с солеными огурцами | B23: картофель | C23: 13.76 | D23: 20.64 | E23: =C23*E4 -> 137.6 | F23: =D23*F4 -> 206.4 | H23: =E23+F23 -> 344 | I23: перловка | J23: кг | M23: 0.00
B24: свекла | C24: 10.2 | D24: 15.3 | E24: =C24*E4 -> 102 | F24: =D24*F4 -> 153 | H24: =E24+F24 -> 255 | I24: геркулес | J24: кг | M24: 0.00
B25: морковь | C25: 7.56 | D25: 11.4 | E25: =C25*E4 -> 75.6 | F25: =D25*F4 -> 114 | H25: =E25+F25 -> 189.6 | I25: горох | J25: кг
B26: огурцы соленые | C26: 14.56 | D26: 21.84 | E26: =C26*E4 -> 145.6 | F26: =D26*F4 -> 218.4 | H26: =E26+F26 -> 364 | I26: пшеничная | J26: кг
B27: масло растит. | C27: 2.4 | D27: 3.6 | E27: =C27*E4 -> 24 | F27: =D27*F4 -> 36 | H27: =E27+F27 -> 60 | I27: полба | J27: кг | M27: 0.00
B28: лук | C28: 7.14 | D28: 10.71 | E28: =C28*E4 -> 71.4 | F28: =D28*F4 -> 107.1 | H28: =E28+F28 -> 178.5 | I28: кукурузная крупа | J28: кг | M28: 0.00
A29: Щи со свежей капустой, картофелем на курином бульоне, с куриными фрикадельками и со сметаной | I29: сахар песок | J29: кг | K29: =(H9+H14+H60+H70)/1000 -> 0.46 | M29: -0.46
I30: вермишель | J30: кг | K30: =H53/1000 -> 0.84 | M30: -0.84
A31: цыплята-бройлеры с/м | C31: 17.5 | D31: 26.33 | E31: =C31*E4 -> 175 | F31: =D31*F4 -> 263.3 | G31: =D31*G3 -> 263.3 | H31: =E31+F31+G31 -> 701.6 | I31: печенье | J31: кг | K31: =H64/1000 -> 0.60 | M31: -0.60
A32: фарш куриный | C32: 11.9 | D32: 17.96 | E32: =C32*E4 -> 119 | F32: =D32*F4 -> 179.6 | G32: =D32*G3 -> 179.6 | H32: =E32+F32+G32 -> 478.2 | I32: вафли | J32: кг | M32: 0.00
A33: капуста | C33: 37.5 | D33: 50 | E33: =C33*E4 -> 375 | F33: =D33*F4 -> 500 | G33: =D33*G3 -> 500 | H33: =E33+F33+G33 -> 1375 | I33: какао | J33: кг | K33: =H13/1000 -> 0.04 | M33: -0.04
A34: картофель | C34: 23.94 | D34: 31.92 | E34: =C34*E4 -> 239.4 | F34: =D34*F4 -> 319.2 | G34: =D34*G3 -> 319.2 | H34: 877.8 | I34: кофе | J34: кг | M34: 0.00
A35: морковь | C35: 7.5 | D35: 12.5 | E35: =C35*E4 -> 75 | F35: =D35*F4 -> 125 | G35: =D35*G3 -> 125 | H35: 325 | I35: заварка | J35: кг | K35: =H69/1000 -> 0.009 | M35: -0.009
A36: лук | C36: 7.14 | D36: 9.52 | E36: =C36*E4 -> 71.4 | F36: =D36*F4 -> 95.2 | G36: =D36*G3 -> 95.2 | H36: 261.8 | I36: лимонная кислота | J36: кг | M36: 0.000
A37: масло раст. | C37: 3 | D37: 4 | E37: =C37*E4 -> 30 | F37: =D37*F4 -> 40 | G37: =D37*G3 -> 40 | H37: 110 | I37: дрожжи | J37: кг | M37: 0.000
A38: сметана | C38: 5 | D38: 7 | E38: =C38*E4 -> 50 | F38: =D38*F4 -> 70 | G38: =D38*G3 -> 70 | H38: 190 | I38: сок | J38: л | M38: 0.000
A39: соль | C39: 0.5 | D39: 0.7 | E39: =C39*E4 -> 5 | F39: =D39*F4 -> 7 | G39: =D39*G3 -> 7 | H39: 19 | I39: соль | J39: кг | K39: =(H10+H39+H46+H52+H56+H68)/1000 -> 0.07 | M39: -0.07
A40: бульон | C40: 120 | D40: 140 | E40: =C40*E4 -> 1200 | F40: =D40*F4 -> 1400 | G40: =D40*G3 -> 1400 | H40: =E40+F40+G40 -> 4000 | I40: картофель | J40: кг | K40: =(H23+H34)/1000 -> 1.22 | M40: -1.22
A41: Тефтели куриные с рисом | B41: куры/цыплята потрош | C41: 39.1 | D41: 48.8 | E41: =C41*E4 -> 391 | F41: =D41*F4 -> 488 | H41: =E41+F41 -> 879 | I41: томат паста | J41: л | K41: =H51/1000 -> 0.02 | M41: -0.02
B42: фарш куриный | C42: 26.67 | D42: 33.3 | E42: =C42*E4 -> 266.7 | F42: =D42*F4 -> 333 | H42: 599.7 | I42: сол.огурцы | J42: л | K42: =H26/1000 -> 0.36 | M42: -0.36
B43: рис | C43: 3.4 | D43: 4.2 | E43: =C43*E4 -> 34 | F43: =D43*F4 -> 42 | H43: 76 | I43: зеленый горошек | J43: кг | M43: 0.00
B44: мука | C44: 2.8 | D44: 3.5 | E44: =C44*E4 -> 28 | F44: =D44*F4 -> 35 | H44: 63 | I44: капуста | J44: кг | K44: =H33/1000 -> 1.38 | M44: -1.38
B45: вода | C45: 5 | D45: 5 | E45: =C45*E4 -> 50 | F45: =D45*F4 -> 50 | H45: 100 | I45: лук | J45: кг | K45: =(H28+H36+H48)/1000 -> 0.63 | M45: -0.63
B46: соль | C46: 0.2 | D46: 0.3 | E46: =C46*E4 -> 2 | F46: =D46*F4 -> 3 | H46: 5 | I46: морковь | J46: кг | K46: =(H25+H35)/1000 -> 0.51 | M46: -0.51
B47: масло раст. | C47: 1.2 | D47: 1.5 | E47: =C47*E4 -> 12 | F47: =D47*F4 -> 15 | H47: 27 | I47: свекла | J47: кг | K47: =H24/1000 -> 0.26 | M47: -0.26
B48: лук | C48: 8.64 | D48: 10.8 | E48: =C48*E4 -> 86.4 | F48: =D48*F4 -> 108 | H48: 194.4 | I48: фрукты | J48: кг | K48: =H21/1000 -> 3.00 | M48: -3.00
A49: соус сметанно томантный | B49: сметана | C49: 5 | D49: 6.25 | E49: =C49*E4 -> 50 | F49: =D49*F4 -> 62.5 | H49: =E49+F49 -> 112.5 | I49: яблоки | J49: кг | M49: 0.00
B50: мука | C50: 1.5 | D50: 1.9 | E50: =C50*E4 -> 15 | F50: =D50*F4 -> 19 | H50: =E50+F50 -> 34 | I50: лимон | J50: кг | K50: =H59/1000 -> 0.06 | M50: -0.06
B51: томатная паста | C51: 0.8 | D51: 1 | E51: =C51*E4 -> 8 | F51: =D51*F4 -> 10 | H51: =E51+F51 -> 18 | I51: кисель | J51: кг | M51: 0.00
B52: соль | C52: 0.16 | D52: 0.2 | E52: =C52*E4 -> 1.6 | F52: =D52*F4 -> 2 | H52: =E52+F52 -> 3.6 | I52: сухофрукты | J52: кг | M52: 0.00
A53: Вермишель отварная с маслом сливочным | B53: вермишель | C53: 38.5 | D53: 45.5 | E53: =C53*E4 -> 385 | F53: =D53*F4 -> 455 | H53: =E53+F53 -> 840 | I53: апельсины | J53: кг | K53: =H57/1000 -> 0.60 | M53: -0.60
B54: вода | C54: 231 | D54: 275 | E54: =C54*E4 -> 2310 | F54: =D54*F4 -> 2750 | H54: 5060 | I54: или мандарины | J54: кг | K54: =H58/1000 -> 0.54 | M54: -0.54
B55: масло сливочное | C55: 3 | D55: 3 | E55: =C55*E4 -> 30 | F55: =D55*F4 -> 30 | H55: 60 | I55: батон нарезной | J55: кг | K55: =H18/1000 -> 0.55 | M55: -0.55
B56: соль | C56: 1.1 | D56: 1.3 | E56: =C56*E4 -> 11 | F56: =D56*F4 -> 13 | H56: 24 | I56: хлеб пшеничный | J56: кг | K56: =H72/1000 -> 0.55 | M56: -0.55
A57: Напиток из цитрусов | B57: апельсины | C57: 26.82 | D57: 32.8 | E57: =C57*E4 -> 268.2 | F57: =D57*F4 -> 328 | H57: 596.2 | I57: хлеб ржаной | J57: кг | K57: =H61/1000 -> 1.25 | M57: -1.25
B58: или мандарины | C58: 24.3 | D58: 29.7 | E58: =C58*E4 -> 243 | F58: =D58*F4 -> 297 | H58: =E58+F58 -> 540 | I58: капуста морская | J58: кг | M58: 0.00
B59: лимон | C59: 2.78 | D59: 3.33 | E59: =C59*E4 -> 27.8 | F59: =D59*F4 -> 33.3 | H59: 61.1 | I59: сок 0,200 | J59: шт | M59: 0.00
B60: сахар | C60: 8 | D60: 10 | E60: =C60*E4 -> 80 | F60: =D60*F4 -> 100 | H60: 180
A61: хлеб ржаной | C61: 35 | D61: 45 | E61: =C61*E4 -> 350 | F61: =D61*F4 -> 450 | G61: =(G3+G4)*D61 -> 450 | H61: 1250
A62: УПЛОТНЕННЫЙ ПОЛДНИК
A63: молоко кипяченое | C63: 158 | D63: 189 | E63: =C63*E4 -> 1580 | F63: =D63*F4 -> 1890 | H63: =E63+F63 -> 3470
A64: печенье | C64: 20 | D64: 40 | E64: =C64*E4 -> 200 | F64: =D64*F4 -> 400 | H64: =E64+F64 -> 600
A65: омлет натуральный | B65: яйцо | C65: 84 | D65: 96 | E65: =C65*E4 -> 840 | F65: =D65*F4 -> 960 | H65: =E65+F65 -> 1800
B66: молоко | C66: 65 | D66: 75 | E66: =C66*E4 -> 650 | F66: =D66*F4 -> 750 | H66: 1400
B67: масло сливочное | C67: 2 | D67: 2.5 | E67: =C67*E4 -> 20 | F67: =D67*F4 -> 25 | H67: 45
B68: соль | C68: 0.3 | D68: 0.4 | E68: =C68*E4 -> 3 | F68: =D68*F4 -> 4 | H68: 7
A69: Чай с сахаром | B69: Чай весовой | C69: 0.4 | D69: 0.45 | E69: =C69*E4 -> 4 | F69: =D69*F4 -> 4.5 | H69: =E69+F69 -> 8.5
B70: сахар | C70: 5 | D70: 6 | E70: =C70*E4 -> 50 | F70: =D70*F4 -> 60 | H70: =E70+F70 -> 110
B71: вода | C71: 150 | D71: 180 | E71: =C71*E4 -> 1500 | F71: =D71*F4 -> 1800 | H71: =E71+F71 -> 3300
A72: хлеб пшеничный | C72: 25 | D72: 30 | E72: =C72*E4 -> 250 | F72: =D72*F4 -> 300 | H72: 550

Sheet 9 день
A1: меню на 9 день | C1: ГРАММ НА 1 РЕБЕНКА | E1: КОЛ-ВО ДЕТЕЙ | G1: Сотрудники | H1: ИТОГО | I1: продукты к выдаче | J1: ед.изм | K1: ИТОГО на день | L1: Выдано | M1: Перерасход
I2: птица | K2: =H29/1000 -> 0.73
I3: фарш куриный | J3: кг | M3: =L3-K3 -> 0.00 | N3: =B4 -> 00:00:00
A4: Дата | C4: ЯСЛИ | D4: САД | E4: ЯСЛИ | F4: САД | G4: 10 | H4: первое | I4: минтай | J4: кг | K4: =H39/1000 -> 1.19 | M4: -1.19
E5: 10 | F5: 10 | H5: второе | I5: фарш рыбный | J5: кг | K5: =H38/1000 -> 0.92
A6: ЗАВТРАК | I6: масло слив | J6: кг | K6: =(H13+H22+H40+H54+H60)/1000 -> 0.54 | M6: -0.54
A7: КАША ПШЕНИЧНАЯ МОЛОЧНАЯ С МАСЛОМ СЛИВ. | I7: масло раст | J7: л | K7: =(H37+H33)/1000 -> 0.14 | M7: -0.14
A8: крупа пшеничная | C8: 18 | D8: 22.5 | E8: =C8*E5 -> 180 | F8: =D8*F5 -> 225 | H8: =E8+F8 -> 405 | I8: молоко | J8: л | K8: =(H9+H17)/1000 -> 3.34 | M8: -3.34
A9: молоко | C9: 70 | D9: 90 | E9: =C9*E5 -> 700 | F9: =D9*F5 -> 900 | H9: 1600 | I9: молоко сгущ | J9: л | M9: 0.00
A10: вода | C10: 53 | D10: 68 | E10: =C10*E5 -> 530 | F10: =D10*F5 -> 680 | H10: 1210 | I10: кефир | J10: шт. | M10: 0.00
A11: Сахар | C11: 2 | D11: 2.5 | E11: =C11*E5 -> 20 | F11: =D11*F5 -> 25 | H11: 45 | I11: ряженка | J11: шт. | K11: =H50/450 -> 8 | M11: -7.56
A12: соль | C12: 0.4 | D12: 0.5 | E12: =C12*E5 -> 4 | F12: =D12*F5 -> 5 | H12: 9 | I12: катык | J12: шт. | M12: 0.00
A13: масло сливочное | C13: 3 | D13: 3 | E13: =C13*E5 -> 30 | F13: =D13*F5 -> 30 | H13: 60 | I13: напиток ацидофильный | J13: шт. | M13: 0.00
A14: чай с молоком, с сахаром | I14: сметана | J14: л | M14: 0.00
A15: заварка | C15: 0.45 | D15: 0.45 | E15: =C15*E5 -> 4.5 | F15: =D15*F5 -> 4.5 | H15: =E15+F15 -> 9 | I15: творог | J15: шт. | K15: =H55/250 -> 6 | M15: -5.86
A16: сахар | C16: 6 | D16: 6 | E16: =C16*E5 -> 60 | F16: =D16*F5 -> 60 | H16: =E16+F16 -> 120 | I16: сыр | J16: кг | K16: =H21/1000 -> 0.20 | M16: -0.20
A17: молоко | C17: 82 | D17: 92 | E17: =C17*E5 -> 820 | F17: =D17*F5 -> 920 | H17: =E17+F17 -> 1740 | I17: яйцо | J17: шт | K17: =+H57/48 -> 7 | M17: -7
A18: вода | C18: 90 | D18: 90 | E18: =C18*E5 -> 900 | F18: =D18*F5 -> 900 | H18: =E18+F18 -> 1800 | I18: мука пшен | J18: кг | K18: =(H52+H58)/1000 -> 0.53 | M18: -0.53
A19: бутерброд с сыром, с маслом сливочным | I19: гречка | J19: кг | M19: 0.00
A20: батон нарезной | C20: 25 | D20: 30 | E20: =C20*E5 -> 250 | F20: =D20*F5 -> 300 | H20: =E20+F20 -> 550 | I20: манка | J20: кг | M20: =L20-K20 -> 0.00
A21: сыр | C21: 10.2 | D21: 10.2 | E21: =C21*E5 -> 102 | F21: =D21*F5 -> 102 | H21: =E21+F21 -> 204 | I21: рис | J21: кг | M21: 0.00
A22: масло сливочное | C22: 5 | D22: 5 | E22: =C22*E5 -> 50 | F22: =D22*F5 -> 50 | H22: =E22+F22 -> 100 | I22: пшено | J22: кг | M22: 0.00
A23: 2-ОЙ ЗАВТРАК | I23: перловка | J23: кг | M23: 0.00
A24: Сок в ассортименте | C24: 200 | D24: 180 | E24: =C24*E5 -> 2000 | F24: =D24*F5 -> 1800 | H24: =E24+F24 -> 3800 | I24: пшеничная | J24: кг | K24: =H8/1000 -> 0.41
A25: ОБЕД | I25: полба | J25: кг | M25: =L25-K25 -> 0.00
A26: Огурцы соленые порционно | I26: сахар песок | J26: кг | K26: =(H11+H16+H53+H46+H56+H59+H62)/1000 -> 0.94 | M26: -0.94
A27: огурцы соленые | C27: 54.5 | D27: 90.9 | E27: =C27*E5 -> 545 | F27: =D27*F5 -> 909 | H27: =E27+F27 -> 1454 | I27: макароны | J27: кг | M27: 0.00
A28: Суп картофельный с фасолью на курином бульоне, с мясом птицы | B28: картофель | C28: 39.9 | D28: 47.88 | E28: =C28*E5 -> 399 | F28: =D28*F5 -> 478.8 | G28: =D28*G4 -> 478.8 | H28: =E28+F28+G28 -> 1356.6 | I28: печенье | J28: кг | K28: =H48/1000 -> 0.60 | M28: -0.60
B29: цыплята-бройлеры | C29: 24.3 | D29: 24.3 | E29: =C29*E5 -> 243 | F29: =D29*F5 -> 243 | G29: =D29*G4 -> 243 | H29: =E29+F29+G29 -> 729 | I29: вафли | J29: кг | M29: 0.00
B30: фасоль | C30: 12.15 | D30: 14.58 | E30: =C30*E5 -> 121.5 | F30: =D30*F5 -> 145.8 | G30: =D30*G4 -> 145.8 | H30: 413.1 | I30: какао | J30: кг | M30: 0.00
B31: морковь | C31: 9.38 | D31: 11.25 | E31: =C31*E5 -> 93.8 | F31: =D31*F5 -> 112.5 | G31: =D31*G4 -> 112.5 | H31: 318.8 | I31: кофе | J31: кг | M31: 0.000
B32: лук | C32: 7.2 | D32: 8.64 | E32: =C32*E5 -> 72 | F32: =D32*F5 -> 86.4 | G32: =D32*G4 -> 86.4 | H32: 244.8 | I32: заварка | J32: кг | K32: =(H15+H61)/1000 -> 0.026 | M32: -0.026
B33: масло раст | C33: 3 | D33: 3.6 | E33: =C33*E5 -> 30 | F33: =D33*F5 -> 36 | G33: =D33*G4 -> 36 | H33: 102 | I33: лимонная кислота | J33: кг | M33: 0.000
B34: бульон | C34: 105 | D34: 126 | E34: =C34*E5 -> 1050 | F34: =D34*F5 -> 1260 | G34: =D34*G4 -> 1260 | H34: 3570 | I34: дрожжи | J34: кг | M34: 0.000
B35: соль | C35: 0.5 | D35: 0.7 | E35: =C35*E5 -> 5 | F35: =D35*F5 -> 7 | G35: =D35*G4 -> 7 | H35: 19 | I35: сок | J35: л | K35: =F24/1000 -> 1.80 | M35: -1.80
A36: Запеканка картофельная с рыбой | B36: лук | C36: 12.72 | D36: 16.92 | E36: =C36*E5 -> 127.2 | F36: =D36*F5 -> 169.2 | H36: =E36+F36+G36 -> 296.4 | I36: соль | J36: кг | K36: =(H12+H35+H42)/1000 -> 0.04 | M36: -0.04
B37: масло растительное | C37: 1.8 | D37: 2.4 | E37: =C37*E5 -> 18 | F37: =D37*F5 -> 24 | H37: =E37+F37+G37 -> 42 | I37: картофель | J37: кг | K37: =(H28+H43)/1000 -> 5.81 | M37: -5.81
B38: фарш рыбный | C38: 39.38 | D38: 52.5 | E38: =C38*E5 -> 393.8 | F38: =D38*F5 -> 525 | H38: =E38+F38+G38 -> 918.8 | I38: томат паста | J38: л | M38: 0.00
B39: минтай | C39: 51 | D39: 68 | E39: =C39*E5 -> 510 | F39: =D39*F5 -> 680 | H39: 1190 | I39: сол.огурцы | J39: л | K39: =H27/1000 -> 1.45 | M39: -1.45
B40: масло слив. | C40: 4.6 | D40: 6.1 | E40: =C40*E5 -> 46 | F40: =D40*F5 -> 61 | H40: 107 | I40: зеленый горошек | J40: кг
B41: сухари панировочные | C41: 3.2 | D41: 4.27 | E41: =C41*E5 -> 32 | F41: =D41*F5 -> 42.7 | H41: 74.7 | I41: огурцы свежие | J41: кг | M41: 0.00
B42: соль | C42: 0.5 | D42: 0.6 | E42: =C42*E5 -> 5 | F42: =D42*F5 -> 6 | H42: 11 | I42: лук | J42: кг | K42: =(H36+H32)/1000 -> 0.54 | M42: -0.54
B43: картофель | C43: 190.7 | D43: 254.43 | E43: =C43*E5 -> 1907 | F43: =D43*F5 -> 2544.3 | H43: 4451.3 | I43: морковь | J43: кг | K43: =H31/1000 -> 0.32 | M43: -0.32
A44: хлеб ржаной | C44: 35 | D44: 45 | E44: =C44*E5 -> 350 | F44: =D44*F5 -> 450 | G44: =(G4+G5)*D44 -> 450 | H44: =E44+F44+G44 -> 1250 | I44: фасоль | J44: кг | K44: =H30/1000 -> 0.41 | M44: -0.41
A45: Кисель | B45: кисель | C45: 17.5 | D45: 21 | E45: =C45*E5 -> 175 | F45: =D45*F5 -> 210 | H45: =E45+F45 -> 385 | I45: фрукты | J45: кг | M45: 0.00
B46: сахар | C46: 5 | D46: 6 | E46: =C46*E5 -> 50 | F46: =D46*F5 -> 60 | H46: =E46+F46 -> 110 | I46: яблоки | J46: кг | M46: 0.00
B47: вода | C47: 150 | D47: 180 | E47: =C47*E5 -> 1500 | F47: =D47*F5 -> 1800 | H47: =E47+F47 -> 3300 | I47: лимон | J47: кг | K47: =H63/1000 -> 0.14 | M47: -0.14
A48: Печенье | C48: 20 | D48: 40 | E48: =C48*E5 -> 200 | F48: =D48*F5 -> 400 | H48: =E48+F48 -> 600 | I48: кисель | J48: кг | K48: =H45/1000 -> 0.39 | M48: -0.39
A49: УПЛОТНЕННЫЙ ПОЛДНИК | I49: свежеморож фрукты | J49: кг | M49: 0.00
A50: Ряженка | C50: 155 | D50: 185 | E50: =C50*E5 -> 1550 | F50: =D50*F5 -> 1850 | H50: =E50+F50 -> 3400 | I50: изюм | J50: кг | M50: 0.00
A51: Королевская ватрушка | I51: сухари панировочные | J51: кг | K51: =H41/1000 -> 0.07 | M51: -0.07
A52: Посыпка низ | B52: мука | C52: 17 | D52: 21 | E52: =C52*E5 -> 170 | F52: =D52*F5 -> 210 | H52: =E52+F52 -> 380 | I52: батон нарезной | J52: кг | K52: =H20/1000 -> 0.55 | M52: -0.55
B53: сахар | C53: 9 | D53: 10.7 | E53: =C53*E5 -> 90 | F53: =D53*F5 -> 107 | H53: 197 | I53: хлеб пшеничный | J53: кг | K53: =H64/1000 -> 0.55 | M53: =L53-K53 -> -0.55
B54: масло слив. | C54: 9 | D54: 10.7 | E54: =C54*E5 -> 90 | F54: =D54*F5 -> 107 | H54: 197 | I54: хлеб ржаной | J54: кг | K54: =H44/1000 -> 1.25 | M54: -1.25
A55: Творожная начинка | B55: творог | C55: 68 | D55: 78.5 | E55: =C55*E5 -> 680 | F55: =D55*F5 -> 785 | H55: 1465 | I55: кукуруза консерв | J55: кг | M55: 0.00
B56: сахар | C56: 13.5 | D56: 15 | E56: =C56*E5 -> 135 | F56: =D56*F5 -> 150 | H56: 285 | I56: сок 0,200 | J56: шт | K56: =E24/200 -> 10 | M56: -10.00
B57: яйцо | C57: 16.2 | D57: 18 | E57: =C57*E5 -> 162 | F57: =D57*F5 -> 180 | H57: 342 | I57: курага | J57: кг | M57: 0.00
A58: Посыпка низ | B58: мука | C58: 7.2 | D58: 7.8 | E58: =C58*E5 -> 72 | F58: =D58*F5 -> 78 | H58: 150
B59: сахар | C59: 3.5 | D59: 4.25 | E59: =C59*E5 -> 35 | F59: =D59*F5 -> 42.5 | H59: 77.5
B60: масло слив. | C60: 3.5 | D60: 4.25 | E60: =C60*E5 -> 35 | F60: =D60*F5 -> 42.5 | H60: 77.5
A61: Чай с сахаром и лимоном | B61: чай | C61: 0.8 | D61: 0.9 | E61: =C61*E5 -> 8 | F61: =D61*F5 -> 9 | H61: =E61+F61 -> 17
B62: сахар | C62: 5 | D62: 6 | E62: =C62*E5 -> 50 | F62: =D62*F5 -> 60 | H62: =E62+F62 -> 110
B63: лимон | C63: 5.55 | D63: 8 | E63: =C63*E5 -> 55.5 | F63: =D63*F5 -> 80 | H63: 135.5
A64: хлеб пшеничный | C64: 25 | D64: 30 | E64: =C64*E5 -> 250 | F64: =D64*F5 -> 300 | H64: =E64+F64 -> 550

Sheet 10 день
A1: меню на 10 день | C1: ГРАММ НА 1 РЕБЕНКА | E1: КОЛ-ВО ДЕТЕЙ | G1: Сотрудники | H1: ИТОГО | I1: продукты к выдаче | J1: ед.изм | K1: ИТОГО на день | L1: Выдано | M1: Перерасход (экономия)
I2: мясо (котлетное) | J2: кг | M2: =L2-K2 -> 0.00 | N2: =B3 -> 00:00:00
A3: Дата | C3: ЯСЛИ | D3: САД | E3: ЯСЛИ | F3: САД | G3: 10 | H3: первое | I3: фарш готовый | J3: кг | M3: =L3-K3 -> 0.00
E4: 10 | F4: 10 | H4: второе | I4: фарш куриный | J4: кг | K4: =H35/1000 -> 0.99 | M4: -0.99
A5: ЗАВТРАК | I5: птица | J5: кг | K5: =(H27+H34)/1000 -> 2.16 | M5: -2.16
A6: каша геркулесовая | I6: фарш минтая | J6: кг | M6: 0.00
A7: геркулес | C7: 18 | D7: 22.5 | E7: =C7*E4 -> 180 | F7: =D7*F4 -> 225 | H7: =E7+F7 -> 405 | I7: минтай | J7: кг | M7: 0.00
A8: молоко | C8: 123 | D8: 158 | E8: =C8*E4 -> 1230 | F8: =D8*F4 -> 1580 | H8: =E8+F8 -> 2810 | I8: масло слив | J8: кг | K8: =(H11+H19+H48+H73+H64)/1000 -> 0.37 | M8: -0.37
A9: Сахар | C9: 2 | D9: 2.5 | E9: =C9*E4 -> 20 | F9: =D9*F4 -> 25 | H9: =E9+F9 -> 45 | I9: масло раст | J9: л | K9: =(H25+H31+H36+H44+H69)/1000 -> 0.30 | M9: -0.30
A10: соль | C10: 0.4 | D10: 0.5 | E10: =C10*E4 -> 4 | F10: =D10*F4 -> 5 | H10: =E10+F10 -> 9 | I10: молоко | J10: л | K10: =(H8+H15+H61+H65)/1000 -> 8.33 | M10: -8.33
A11: масло сливочное | C11: 3 | D11: 5 | E11: =C11*E4 -> 30 | F11: =D11*F4 -> 50 | H11: =E11+F11 -> 80 | I11: молоко сгущ | J11: л | M11: 0.00
A12: Кофейный напиток | I12: кефир | J12: шт. | M12: 0.00
A13: кофе | C13: 2.5 | D13: 2.5 | E13: =C13*E4 -> 25 | F13: =D13*F4 -> 25 | H13: =E13+F13 -> 50 | I13: ряженка | J13: шт. | M13: 0.00
A14: сахар | C14: 6 | D14: 6 | E14: =C14*E4 -> 60 | F14: =D14*F4 -> 60 | H14: =E14+F14 -> 120 | I14: катык | J14: шт. | M14: 0.00
A15: молоко | C15: 90 | D15: 90 | E15: =C15*E4 -> 900 | F15: =D15*F4 -> 900 | H15: =E15+F15 -> 1800 | I15: напиток ацидофильный | J15: шт. | M15: 0.00
A16: вода | C16: 108 | D16: 108 | E16: =C16*E4 -> 1080 | F16: =D16*F4 -> 1080 | H16: =E16+F16 -> 2160 | I16: сыр | J16: кг. | K16: =H72/1000 -> 0.18 | M16: -0.18
A17: бутерброд с маслом | I17: яйцо | J17: шт. | K17: =(H38+H63)/48 -> 2 | M17: -2
A18: батон нарезной | C18: 25 | D18: 30 | E18: =C18*E4 -> 250 | F18: =D18*F4 -> 300 | H18: =E18+F18 -> 550 | I18: мука пшен | J18: кг | K18: =(H40+H49+H62)/1000 -> 8.12 | M18: -8.12
A19: масло сливочное | C19: 5 | D19: 5 | E19: =C19*E4 -> 50 | F19: =D19*F4 -> 50 | H19: =E19+F19 -> 100 | I19: гречка | J19: кг | M19: 0.00
A20: 2-ОЙ ЗАВТРАК | I20: манка | J20: кг | M20: 0.00
A21: Фрукты свежие | C21: 100 | D21: 100 | E21: =C21*E4 -> 1000 | F21: =D21*F4 -> 1000 | H21: =E21+F21 -> 2000 | I21: рис | J21: кг | M21: 0.00
A22: ОБЕД | I22: пшено | J22: кг | M22: 0.00
A23: Салат из кукурузы к/с | B23: кукуруза к/с | C23: 46.6 | D23: 77.65 | E23: =C23*E4 -> 466 | F23: =D23*F4 -> 776.5 | H23: =F23+E23 -> 1242.5 | I23: геркулес | J23: кг | K23: =H7/1000 -> 0.41 | M23: -0.41
B24: сахар | C24: 0.6 | D24: 1 | E24: =C24*E4 -> 6 | F24: =D24*F4 -> 10 | H24: =F24+E24 -> 16 | I24: пшеничная | J24: кг | M24: 0.00
B25: масло растительное | C25: 1.8 | D25: 3 | E25: =C25*E4 -> 18 | F25: =D25*F4 -> 30 | H25: =E25+F25 -> 48 | I25: кукурузная крупа | J25: кг | M25: 0.00
A26: Суп лапша домашняя на курином бульоне, с мясом птицы | I26: сахар песок | J26: кг | K26: =(H9+H14+H24+H53+H57+H77+H66)/1000 -> 0.53 | M26: -0.53
A27: цыплята бройлеры | C27: 24.3 | D27: 24.3 | E27: =C27*E4 -> 243 | F27: =D27*F4 -> 243 | G27: =D27*G3 -> 243 | H27: =G27+F27+E27 -> 729 | I27: макароны | J27: кг | K27: =H70/1000 -> 0.92 | M27: -0.92
A28: лапша готовая | C28: 12 | D28: 16 | E28: =C28*E4 -> 120 | F28: =D28*F4 -> 160 | G28: =D28*G3 -> 160 | H28: =E28+F28+G28 -> 440 | I28: печенье | J28: кг | M28: 0.00
A29: морковь | C29: 7.5 | D29: 10 | E29: =C29*E4 -> 75 | F29: =D29*F4 -> 100 | G29: =D29*G3 -> 100 | H29: 275 | I29: какао | J29: кг | M29: 0.000
A30: лук | C30: 7.1 | D30: 9.52 | E30: =C30*E4 -> 71 | F30: =D30*F4 -> 95.2 | G30: =D30*G3 -> 95.2 | H30: 261.4 | I30: кофе | J30: кг | K30: =H13/1000 -> 0.050 | M30: -0.050
A31: масло раст. | C31: 3 | D31: 4 | E31: =C31*E4 -> 30 | F31: =D31*F4 -> 40 | G31: =D31*G3 -> 40 | H31: 110 | I31: заварка | J31: кг | M31: 0.000
A32: соль | C32: 0.5 | D32: 0.7 | E32: =C32*E4 -> 5 | F32: =D32*F4 -> 7 | G32: =D32*G3 -> 7 | H32: 19 | I32: кукуруза к/с | J32: кг | K32: =H23/1000 -> 1.243 | M32: -1.243
A33: бульон | C33: 143 | D33: 170 | E33: =C33*E4 -> 1430 | F33: =D33*F4 -> 1700 | G33: =D33*G3 -> 1700 | H33: 4830 | I33: шиповник | J33: кг | K33: =H76/1000 -> 0.34 | M33: -0.34
A34: Биточки "Домашние" | B34: птица | C34: 59.5 | D34: 83.25 | E34: =C34*E4 -> 595 | F34: =D34*F4 -> 832.5 | H34: 1427.5 | I34: сок | J34: л | M34: 0.00
B35: фарш куриный | C35: 41.4 | D35: 57.9 | E35: =C35*E4 -> 414 | F35: =D35*F4 -> 579 | H35: =E35+F35 -> 993 | I35: соль | J35: кг | K35: =(H10+H32+H41+H46+H54+H74+H68)/1000 -> 0.08 | M35: -0.08
B36: масло раст. | C36: 1.9 | D36: 2.6 | E36: =C36*E4 -> 19 | F36: =D36*F4 -> 26 | H36: 45 | I36: картофель | J36: кг | K36: =H47/1000 -> 1.20 | M36: -1.20
B37: морковь | C37: 11.75 | D37: 16.4 | E37: =C37*E4 -> 117.5 | F37: =D37*F4 -> 164 | H37: 281.5 | I37: томат паста | J37: л | K37: =H52/1000 -> 0.05 | M37: -0.05
B38: яйцо | C38: 0.6 | D38: 0.84 | E38: =C38*E4 -> 6 | F38: =D38*F4 -> 8.4 | H38: 14.4 | I38: свекла | J38: л | M38: 0.00
B39: лук | C39: 9 | D39: 12.6 | E39: =C39*E4 -> 90 | F39: =D39*F4 -> 126 | H39: 216 | I39: капуста | J39: кг | K39: =H45/1000 -> 0.74 | M39: =L39-K39 -> -0.74
B40: мука | C40: 3.75 | D40: 5.25 | E40: =C40*E4 -> 37.5 | F40: =D40*F4 -> 52.5 | H40: =E40+F40 -> 90 | I40: лук | J40: кг | K40: =(H30+H39+H43+H51)/1000 -> 0.95 | M40: =L40-K40 -> -0.95
B41: соль | C41: 0.4 | D41: 0.57 | E41: =C41*E4 -> 4 | F41: =D41*F4 -> 5.7 | H41: 9.7 | I41: морковь | J41: кг | K41: =(H29+H37+H42+H50)/1000 -> 1.15 | M41: =L41-K41 -> -1.15
A42: Рагу из овощей | B42: морковь | C42: 24 | D42: 30 | E42: =C42*E4 -> 240 | F42: =D42*F4 -> 300 | H42: 540 | I42: лимон | J42: кг | M42: =L42-K42 -> 0.00
B43: лук | C43: 20.4 | D43: 24 | E43: =C43*E4 -> 204 | F43: =D43*F4 -> 240 | H43: =E43+F43 -> 444 | I43: повидло | J43: л | M43: 0.00
B44: масло растительное | C44: 4 | D44: 5 | E44: =C44*E4 -> 40 | F44: =D44*F4 -> 50 | H44: 90 | I44: фрукты свежие | J44: кг | K44: =H21/1000 -> 2.00 | M44: -2.00
B45: капуста свежая | C45: 32.75 | D45: 41 | E45: =C45*E4 -> 327.5 | F45: =D45*F4 -> 410 | H45: 737.5 | I45: яблоки | J45: кг | K45: =H56/1000 -> 0.59 | M45: -0.59
B46: соль | C46: 0.6 | D46: 0.75 | E46: =C46*E4 -> 6 | F46: =D46*F4 -> 7.5 | H46: 13.5 | I46: изюм | J46: кг | M46: 0.00
B47: картофель | C47: 53.2 | D47: 66.5 | E47: =C47*E4 -> 532 | F47: =D47*F4 -> 665 | H47: 1197 | I47: дрожжи | J47: кг | K47: =H67/1000 -> 0.01 | M47: -0.01
A48: Соус | B48: масло сливочное | C48: 2.11 | D48: 2.4 | E48: =C48*E4 -> 21.1 | F48: =D48*F4 -> 24 | H48: =E48+F48 -> 45.1 | I48: сухари панировочные | J48: кг | M48: 0.00
B49: мука | C49: 1.58 | D49: 1.8 | E49: =C49*E4 -> 15.8 | F49: =D49*F4 -> 18 | H49: 33.8 | I49: батон нарезной | J49: кг | K49: =H18/1000 -> 0.55 | M49: -0.55
B50: морковь | C50: 2.63 | D50: 3 | E50: =C50*E4 -> 26.3 | F50: =D50*F4 -> 30 | H50: 56.3 | I50: хлеб пшеничный | J50: кг | K50: =H75/1000 -> 0.55 | M50: -0.55
B51: лук | C51: 1.26 | D51: 1.44 | E51: =C51*E4 -> 12.6 | F51: =D51*F4 -> 14.4 | H51: 27 | I51: хлеб ржаной | J51: кг | K51: =H59/1000 -> 1.25 | M51: -1.25
B52: томатная паста | C52: 2.1 | D52: 2.4 | E52: =C52*E4 -> 21 | F52: =D52*F4 -> 24 | H52: 45 | I52: капуста морская | J52: кг | M52: 0.00
B53: сахар | C53: 0.35 | D53: 0.4 | E53: =C53*E4 -> 3.5 | F53: =D53*F4 -> 4 | H53: 7.5 | I53: зеленый горошек к/с | J53: кг | M53: 0.00
B54: соль | C54: 0.35 | D54: 0.4 | E54: =C54*E4 -> 3.5 | F54: =D54*F4 -> 4 | H54: 7.5 | I54: сок 0,200 | J54: шт | M54: 0
B55: вода | C55: 35 | D55: 40 | E55: =C55*E4 -> 350 | F55: =D55*F4 -> 400 | H55: 750 | I55: икра кабачковая | J55: кг | M55: 0.00
A56: Напиток из яблок | B56: яблоки | C56: 27.4 | D56: 31.92 | E56: =C56*E4 -> 274 | F56: =D56*F4 -> 319.2 | H56: 593.2 | I56: лапша | J56: кг | K56: =H28/1000 -> 0.44 | M56: -0.44
B57: Сахар | C57: 5 | D57: 6 | E57: =C57*E4 -> 50 | F57: =D57*F4 -> 60 | H57: 110
B58: вода | C58: 152 | D58: 183 | E58: =C58*E4 -> 1520 | F58: =D58*F4 -> 1830 | H58: 3350
A59: хлеб ржаной | C59: 35 | D59: 45 | E59: =C59*E4 -> 350 | F59: =D59*F4 -> 450 | G59: =(G3+G4)*D59 -> 450 | H59: =E59+F59+G59 -> 1250
A60: УПЛОТНЕННЫЙ ПОЛДНИК
A61: Молоко кипяченое | C61: 158 | D61: 189 | E61: =C61*E4 -> 1580 | F61: =D61*F4 -> 1890 | H61: =E61+F61 -> 3470
A62: Слойка сладкая | B62: мука | C62: 32 | D62: 32 | E62: =C62*E4 -> 320 | F62: =D62*F43 -> 7680 | H62: 8000
B63: яйцо | C63: 3.9 | D63: 3.9 | E63: =C63*E4 -> 39 | F63: =D63*F4 -> 39 | H63: 78
B64: масло сливочное | C64: 5 | D64: 5 | E64: =C64*E4 -> 50 | F64: =D64*F4 -> 50 | H64: 100
B65: молоко | C65: 12.5 | D65: 12.5 | E65: =C65*E4 -> 125 | F65: =D65*F4 -> 125 | H65: 250
B66: сахар | C66: 6 | D66: 6 | E66: =C66*E4 -> 60 | F66: =D66*F4 -> 60 | H66: 120
B67: дрожжи | C67: 0.4 | D67: 0.4 | E67: =C67*E4 -> 4 | F67: =D67*F4 -> 4 | H67: 8
B68: соль | C68: 0.4 | D68: 0.4 | E68: =C68*E4 -> 4 | F68: =D68*F4 -> 4 | H68: 8
B69: масло раст. для смазки | C69: 0.13 | D69: 0.13 | E69: =C69*E4 -> 1.3 | F69: =D69*F4 -> 1.3 | H69: 2.6
A70: Макаронные изделия отварные с сыром | B70: макароны | C70: 43 | D70: 49 | E70: =C70*E4 -> 430 | F70: =D70*F4 -> 490 | H70: 920
B71: вода | C71: 258 | D71: 294 | E71: =C71*E4 -> 2580 | F71: =D71*F4 -> 2940 | H71: =E71+F71 -> 5520
B72: сыр | C72: 8.16 | D72: 10.2 | E72: =C72*E4 -> 81.6 | F72: =D72*F4 -> 102 | H72: =E72+F72 -> 183.6
B73: масло слив. | C73: 2 | D73: 2.5 | E73: =C73*E4 -> 20 | F73: =D73*F4 -> 25 | H73: 45
B74: соль | C74: 0.4 | D74: 0.5 | E74: =C74*E4 -> 4 | F74: =D74*F4 -> 5 | H74: 9
A75: хлеб пшеничный | C75: 25 | D75: 30 | E75: =C75*E4 -> 250 | F75: =D75*F4 -> 300 | H75: =E75+F75 -> 550
A76: Напиток из шиповника растворимого | B76: шиповник | C76: 15.3 | D76: 18.4 | E76: =C76*E4 -> 153 | F76: =D76*F4 -> 184 | H76: =E76+F76 -> 337
B77: сахар | C77: 5 | D77: 6 | E77: =C77*E4 -> 50 | F77: =D77*F4 -> 60 | H77: =E77+F77 -> 110
B78: вода | C78: 150 | D78: 180 | E78: =C78*E4 -> 1500 | F78: =D78*F4 -> 1800 | H78: =E78+F78 -> 3300
